Body name,Body,Service Label,Service Code,Service division Label,Service division code,Organisational unit,Expenditure Category,Expenditure Code,CIPFA detailed expenditure type,CIPFA detailed expenditure code,Narrative,Date,Transaction number,Net Amount,Capital and revenue,Supplier Name
Gosport Borough Council,,"CULTURAL, ENV AND PLANNING",H4-1,,,,REPAIRS AND MAINT OF BUILDINGS,,,,,02/06/2011,15003,"1,547.60",REVENUE,Lucas Windebank & Mcnally
Gosport Borough Council,,"CULTURAL, ENV AND PLANNING",H4-1,,,,"EQUIP, FURNITURE AND MATERIALS",,,,,02/06/2011,14995,745,REVENUE,Pr Whitaker
Gosport Borough Council,,"CULTURAL, ENV AND PLANNING",H4-1,,,,WATER SERVICES,,,,,02/06/2011,15064,"1,466.42",REVENUE,Southern Water Authority
Gosport Borough Council,,"CULTURAL, ENV AND PLANNING",H4-1,,,,DIRECT TRANSPORT COSTS,,,,,02/06/2011,15045,62.91,REVENUE,Arval Uk Mltd
Gosport Borough Council,,"CULTURAL, ENV AND PLANNING",H4-1,,,,CONTRACT HIRE & OPER LEASES,,,,,02/06/2011,14972,"2,988.60",REVENUE,Lex Autolease Ltd
Gosport Borough Council,,"CULTURAL, ENV AND PLANNING",H4-1,,,,DIRECT TRANSPORT COSTS,,,,,02/06/2011,15045,78.77,REVENUE,Arval Uk Mltd
Gosport Borough Council,,"CULTURAL, ENV AND PLANNING",H4-1,,,,MISCELLANEOUS EXPENSES,,,,,02/06/2011,15041,"1,600.00",REVENUE,Southcoast Motor Services Limited
Gosport Borough Council,,"CULTURAL, ENV AND PLANNING",H4-1,,,,INDEPENDENT UNITS IN COUNCIL,,,,,02/06/2011,15044,"1,340.00",REVENUE,Fareham Borough Council
Gosport Borough Council,,"CULTURAL, ENV AND PLANNING",H4-1,,,,INDEPENDENT UNITS IN COUNCIL,,,,,02/06/2011,15043,"1,340.00",REVENUE,Havant Borough Council
Gosport Borough Council,,"CULTURAL, ENV AND PLANNING",H4-1,,,,INDEPENDENT UNITS IN COUNCIL,,,,,02/06/2011,15005,"41,290.36",REVENUE,Remploy Ltd
Gosport Borough Council,,"CULTURAL, ENV AND PLANNING",H4-1,,,,SERVICES,,,,,02/06/2011,15065,"1,930.00",REVENUE,Environment Agency
Gosport Borough Council,,CENTRAL SERVICES TO THE PUBLIC,H4-5,,,,GRANTS AND SUBSCRIPTIONS,,,,,02/06/2011,14832,"1,985.44",REVENUE,Hampshire County Council
Gosport Borough Council,,CORPORATE AND DEMOCRATIC CORE,H4-4,,,,MEMBERS� ALLOWANCES,,,,,02/06/2011,15040,874.2,REVENUE,REDACTED
Gosport Borough Council,,CORPORATE AND DEMOCRATIC CORE,H4-4,,,,DIRECT TRANSPORT COSTS,,,,,02/06/2011,15045,149.85,REVENUE,Arval Uk Mltd
Gosport Borough Council,,CORPORATE AND DEMOCRATIC CORE,H4-4,,,,MISCELLANEOUS EXPENSES,,,,,02/06/2011,15030,516.67,REVENUE,Bezani Catering
Gosport Borough Council,,CENTRAL SERVICES TO THE PUBLIC,H4-5,,,,GRANTS AND SUBSCRIPTIONS,,,,,02/06/2011,14993,886,REVENUE,Hampshire County Council
Gosport Borough Council,,CENTRAL SERVICES TO THE PUBLIC,H4-5,,,,GRANTS AND SUBSCRIPTIONS,,,,,02/06/2011,14994,"9,385.50",REVENUE,Hampshire County Council
Gosport Borough Council,,CENTRAL SERVICES TO THE PUBLIC,H4-5,,,,CATERING,,,,,02/06/2011,15052,"9,261.92",REVENUE,Hampshire County Council
Gosport Borough Council,,CORPORATE AND DEMOCRATIC CORE,H4-4,,,,MISCELLANEOUS EXPENSES,,,,,02/06/2011,15027,"1,215.21",REVENUE,On The Waterfront Limited
Gosport Borough Council,,CORPORATE AND DEMOCRATIC CORE,H4-4,,,,MISCELLANEOUS EXPENSES,,,,,02/06/2011,15048,"1,038.55",REVENUE,Portsmouth Naval Base Property Trust
Gosport Borough Council,,CENTRAL SERVICES TO THE PUBLIC,H4-5,,,,MISCELLANEOUS EXPENSES,,,,,02/06/2011,15011,"1,064.59",REVENUE,Royal Mail Group Plc
Gosport Borough Council,,SERVICE UNITS ADMIN COSTS,H4-6,,,,DIRECT TRANSPORT COSTS,,,,,02/06/2011,15045,5.96,REVENUE,Arval Uk Mltd
Gosport Borough Council,,SERVICE UNITS ADMIN COSTS,H4-6,,,,DIRECT TRANSPORT COSTS,,,,,02/06/2011,15045,49.27,REVENUE,Arval Uk Mltd
Gosport Borough Council,,SERVICE UNITS ADMIN COSTS,H4-6,,,,DIRECT TRANSPORT COSTS,,,,,02/06/2011,15045,218.83,REVENUE,Arval Uk Mltd
Gosport Borough Council,,SERVICE UNITS ADMIN COSTS,H4-6,,,,"EQUIP, FURNITURE AND MATERIALS",,,,,02/06/2011,15068,"6,615.74",REVENUE,Virgin Media Business
Gosport Borough Council,,SERVICE UNITS ADMIN COSTS,H4-6,,,,"EQUIP, FURNITURE AND MATERIALS",,,,,02/06/2011,15063,"2,450.00",REVENUE,Rubicon Workflow Solutions Ltd
Gosport Borough Council,,SERVICE UNITS ADMIN COSTS,H4-6,,,,DIRECT EMPLOYEE EXPENSES,,,,,02/06/2011,15023,693,REVENUE,Coastal Facilities Management Ltd
Gosport Borough Council,,SERVICE UNITS ADMIN COSTS,H4-6,,,,DIRECT TRANSPORT COSTS,,,,,02/06/2011,15045,85.57,REVENUE,Arval Uk Mltd
Gosport Borough Council,,SERVICE UNITS ADMIN COSTS,H4-6,,,,GRANTS AND SUBSCRIPTIONS,,,,,02/06/2011,15067,750,REVENUE,Rsm Tenon Ltd
Gosport Borough Council,,SERVICE UNITS ADMIN COSTS,H4-6,,,,SERVICES,,,,,02/06/2011,15035,560,REVENUE,Hm Court Service
Gosport Borough Council,,CAPITAL,H4-9,,,,CAPITAL - PREMISES COSTS,,,,,02/06/2011,14996,"323,189.00",CAPITAL,Trant Construction Limited
Gosport Borough Council,,CAPITAL,H4-9,,,,SERVICES,,,,,02/06/2011,14997,"1,500.00",CAPITAL,Cyan Power Limited
Gosport Borough Council,,CAPITAL,H4-9,,,,SERVICES,,,,,02/06/2011,15022,"39,764.51",CAPITAL,Mills & Reeve Llp
Gosport Borough Council,,CAPITAL,H4-9,,,,SERVICES,,,,,02/06/2011,14973,"2,200.00",CAPITAL,Urs Scott Wilson Ltd
Gosport Borough Council,,CAPITAL,H4-9,,,,CAPITAL - PREMISES COSTS,,,,,02/06/2011,14801,950,CAPITAL,Cdts Nw
Gosport Borough Council,,CAPITAL,H4-9,,,,CAPITAL - PREMISES COSTS,,,,,02/06/2011,15062,"14,995.00",CAPITAL,Cetl Utilities Control
Gosport Borough Council,,CAPITAL,H4-9,,,,COMMUNICATIONS AND COMPUTING,,,,,02/06/2011,15066,720,CAPITAL,Northgate Arinso Uk Ltd
Gosport Borough Council,,HOUSING SERVICES,H4-3,,,,DIRECT TRANSPORT COSTS,,,,,02/06/2011,15045,117.35,REVENUE,Arval Uk Mltd
Gosport Borough Council,,HOUSING SERVICES,H4-3,,,,DIRECT EMPLOYEE EXPENSES,,,,,02/06/2011,14533,"1,807.46",REVENUE,Kier Building Maintenance
Gosport Borough Council,,SERVICE UNITS ADMIN COSTS,H4-6,,,,GROUNDS MAINTENANCE COSTS,,,,,08/06/2011,15223,"-20,000.00",REVENUE,Enterprise Managed Services Plc
Gosport Borough Council,,SERVICE UNITS ADMIN COSTS,H4-6,,,,GROUNDS MAINTENANCE COSTS,,,,,08/06/2011,15221,"-4,040.00",REVENUE,Enterprise Managed Services Plc
Gosport Borough Council,,SERVICE UNITS ADMIN COSTS,H4-6,,,,GROUNDS MAINTENANCE COSTS,,,,,08/06/2011,15227,"2,500.00",REVENUE,Enterprise Managed Services Plc
Gosport Borough Council,,SERVICE UNITS ADMIN COSTS,H4-6,,,,GROUNDS MAINTENANCE COSTS,,,,,08/06/2011,15225,"6,680.00",REVENUE,Enterprise Managed Services Plc
Gosport Borough Council,,SERVICE UNITS ADMIN COSTS,H4-6,,,,GROUNDS MAINTENANCE COSTS,,,,,08/06/2011,15228,"166,545.99",REVENUE,Enterprise Managed Services Plc
Gosport Borough Council,,HOUSING SERVICES,H4-3,,,,ADULT SOCIAL SERVICES,,,,,08/06/2011,15248,"1,000.00",REVENUE,REDACTED
Gosport Borough Council,,"CULTURAL, ENV AND PLANNING",H4-1,,,,REPAIRS AND MAINT OF BUILDINGS,,,,,09/06/2011,15274,"2,626.00",REVENUE,T Coleborn & Son Ltd
Gosport Borough Council,,"CULTURAL, ENV AND PLANNING",H4-1,,,,GRANTS AND SUBSCRIPTIONS,,,,,09/06/2011,14377,515,REVENUE,South & South East In Bloom
Gosport Borough Council,,"CULTURAL, ENV AND PLANNING",H4-1,,,,INDEPENDENT UNITS IN COUNCIL,,,,,09/06/2011,15260,"19,166.67",REVENUE,The Arena Group Uk Ltd
Gosport Borough Council,,"CULTURAL, ENV AND PLANNING",H4-1,,,,INDEPENDENT UNITS IN COUNCIL,,,,,09/06/2011,15269,500,REVENUE,Gva Grimley Llp
Gosport Borough Council,,"CULTURAL, ENV AND PLANNING",H4-1,,,,INDEPENDENT UNITS IN COUNCIL,,,,,09/06/2011,15286,"1,500.00",REVENUE,Gva Grimley Llp
Gosport Borough Council,,"CULTURAL, ENV AND PLANNING",H4-1,,,,"EQUIP, FURNITURE AND MATERIALS",,,,,09/06/2011,15279,622.2,REVENUE,Helliwell Ltd
Gosport Borough Council,,"CULTURAL, ENV AND PLANNING",H4-1,,,,"EQUIP, FURNITURE AND MATERIALS",,,,,09/06/2011,15206,"9,848.61",REVENUE,Lees & Co
Gosport Borough Council,,"HIGHWAYS, ROADS AND TRANSPORT",H4-2,,,,GROUNDS MAINTENANCE COSTS,,,,,09/06/2011,15193,936,REVENUE,Gs Building Services Ltd
Gosport Borough Council,,"CULTURAL, ENV AND PLANNING",H4-1,,,,REPAIRS AND MAINT OF BUILDINGS,,,,,09/06/2011,15189,169.5,REVENUE,Lucas Windebank & Mcnally
Gosport Borough Council,,"CULTURAL, ENV AND PLANNING",H4-1,,,,REPAIRS AND MAINT OF BUILDINGS,,,,,09/06/2011,15188,95.5,REVENUE,Lucas Windebank & Mcnally
Gosport Borough Council,,HOUSING SERVICES,H4-3,,,,GRANTS AND SUBSCRIPTIONS,,,,,09/06/2011,15328,840,REVENUE,REDACTED
Gosport Borough Council,,HOUSING SERVICES,H4-3,,,,GRANTS AND SUBSCRIPTIONS,,,,,09/06/2011,15330,840,REVENUE,REDACTED
Gosport Borough Council,,HOUSING SERVICES,H4-3,,,,GRANTS AND SUBSCRIPTIONS,,,,,09/06/2011,15324,"1,212.00",REVENUE,REDACTED
Gosport Borough Council,,HOUSING SERVICES,H4-3,,,,GRANTS AND SUBSCRIPTIONS,,,,,09/06/2011,15295,"5,000.00",REVENUE,Eastleigh Borough Council
Gosport Borough Council,,HOUSING SERVICES,H4-3,,,,GRANTS AND SUBSCRIPTIONS,,,,,09/06/2011,15296,"5,000.00",REVENUE,Fareham Borough Council
Gosport Borough Council,,HOUSING SERVICES,H4-3,,,,GRANTS AND SUBSCRIPTIONS,,,,,09/06/2011,15297,"5,000.00",REVENUE,Hart District Council
Gosport Borough Council,,HOUSING SERVICES,H4-3,,,,GRANTS AND SUBSCRIPTIONS,,,,,09/06/2011,15272,"5,000.00",REVENUE,New Forest District Council
Gosport Borough Council,,HOUSING SERVICES,H4-3,,,,GRANTS AND SUBSCRIPTIONS,,,,,09/06/2011,15271,"5,000.00",REVENUE,Rushmoor Borough Council
Gosport Borough Council,,HOUSING SERVICES,H4-3,,,,ENERGY COSTS,,,,,09/06/2011,15320,666.92,REVENUE,British Gas Business
Gosport Borough Council,,HOUSING SERVICES,H4-3,,,,ENERGY COSTS,,,,,09/06/2011,15319,"1,470.65",REVENUE,British Gas Business
Gosport Borough Council,,CENTRAL SERVICES TO THE PUBLIC,H4-5,,,,"EQUIP, FURNITURE AND MATERIALS",,,,,09/06/2011,15154,544.8,REVENUE,Ace Office Supplies Ltd
Gosport Borough Council,,CENTRAL SERVICES TO THE PUBLIC,H4-5,,,,SERVICES,,,,,09/06/2011,15184,"10,679.00",REVENUE,Northgate Information Solutions
Gosport Borough Council,,"CULTURAL, ENV AND PLANNING",H4-1,,,,"PRINTING, STAT & OFFICE EXP",,,,,09/06/2011,15175,367.1,REVENUE,Robert Lihou
Gosport Borough Council,,"CULTURAL, ENV AND PLANNING",H4-1,,,,"PRINTING, STAT & OFFICE EXP",,,,,09/06/2011,15180,336.51,REVENUE,Robert Lihou
Gosport Borough Council,,"CULTURAL, ENV AND PLANNING",H4-1,,,,"PRINTING, STAT & OFFICE EXP",,,,,09/06/2011,15173,336.51,REVENUE,Robert Lihou
Gosport Borough Council,,"CULTURAL, ENV AND PLANNING",H4-1,,,,"PRINTING, STAT & OFFICE EXP",,,,,09/06/2011,15177,367.1,REVENUE,Robert Lihou
Gosport Borough Council,,"CULTURAL, ENV AND PLANNING",H4-1,,,,"PRINTING, STAT & OFFICE EXP",,,,,09/06/2011,15181,367.1,REVENUE,Robert Lihou
Gosport Borough Council,,CORPORATE AND DEMOCRATIC CORE,H4-4,,,,MISCELLANEOUS EXPENSES,,,,,09/06/2011,15191,"2,065.33",REVENUE,Gosport Community Assoc
Gosport Borough Council,,CORPORATE AND DEMOCRATIC CORE,H4-4,,,,MISCELLANEOUS EXPENSES,,,,,09/06/2011,15261,495,REVENUE,Technical Services
Gosport Borough Council,,CORPORATE AND DEMOCRATIC CORE,H4-4,,,,"PRINTING, STAT & OFFICE EXP",,,,,09/06/2011,15164,7.76,REVENUE,Ace Office Supplies Ltd
Gosport Borough Council,,CORPORATE AND DEMOCRATIC CORE,H4-4,,,,"PRINTING, STAT & OFFICE EXP",,,,,09/06/2011,15167,20.35,REVENUE,Ace Office Supplies Ltd
Gosport Borough Council,,CORPORATE AND DEMOCRATIC CORE,H4-4,,,,"PRINTING, STAT & OFFICE EXP",,,,,09/06/2011,15192,"1,468.42",REVENUE,Robert Lihou
Gosport Borough Council,,CORPORATE AND DEMOCRATIC CORE,H4-4,,,,"PRINTING, STAT & OFFICE EXP",,,,,09/06/2011,15176,673.02,REVENUE,Robert Lihou
Gosport Borough Council,,CORPORATE AND DEMOCRATIC CORE,H4-4,,,,DIRECT EMPLOYEE EXPENSES,,,,,09/06/2011,15290,"1,013.00",REVENUE,H M Revenue & Customs Only
Gosport Borough Council,,CORPORATE AND DEMOCRATIC CORE,H4-4,,,,DIRECT EMPLOYEE EXPENSES,,,,,09/06/2011,15288,"39,216.67",REVENUE,Hampshire Pension Fund
Gosport Borough Council,,CORPORATE AND DEMOCRATIC CORE,H4-4,,,,"PRINTING, STAT & OFFICE EXP",,,,,09/06/2011,15174,428.29,REVENUE,Robert Lihou
Gosport Borough Council,,CENTRAL SERVICES TO THE PUBLIC,H4-5,,,,MISCELLANEOUS EXPENSES,,,,,09/06/2011,15308,696,REVENUE,Hampshire County Council
Gosport Borough Council,,SERVICE UNITS ADMIN COSTS,H4-6,,,,MISCELLANEOUS EXPENSES,,,,,09/06/2011,15331,880,REVENUE,Sustainable Direction Ltd
Gosport Borough Council,,SERVICE UNITS ADMIN COSTS,H4-6,,,,"PRINTING, STAT & OFFICE EXP",,,,,09/06/2011,15162,5.45,REVENUE,Ace Office Supplies Ltd
Gosport Borough Council,,SERVICE UNITS ADMIN COSTS,H4-6,,,,DIRECT EMPLOYEE EXPENSES,,,,,09/06/2011,15298,672,REVENUE,Fusion People Limited
Gosport Borough Council,,SERVICE UNITS ADMIN COSTS,H4-6,,,,DIRECT EMPLOYEE EXPENSES,,,,,09/06/2011,15342,766.5,REVENUE,Fusion People Limited
Gosport Borough Council,,SERVICE UNITS ADMIN COSTS,H4-6,,,,SERVICES,,,,,09/06/2011,15242,642.75,REVENUE,Hampshire County Council
Gosport Borough Council,,SERVICE UNITS ADMIN COSTS,H4-6,,,,"PRINTING, STAT & OFFICE EXP",,,,,09/06/2011,15238,545,REVENUE,Bishops Printers Ltd
Gosport Borough Council,,SERVICE UNITS ADMIN COSTS,H4-6,,,,"EQUIP, FURNITURE AND MATERIALS",,,,,09/06/2011,15198,421.9,REVENUE,Southern Paper Group
Gosport Borough Council,,SERVICE UNITS ADMIN COSTS,H4-6,,,,"PRINTING, STAT & OFFICE EXP",,,,,09/06/2011,15165,33.99,REVENUE,Ace Office Supplies Ltd
Gosport Borough Council,,SERVICE UNITS ADMIN COSTS,H4-6,,,,DIRECT EMPLOYEE EXPENSES,,,,,09/06/2011,15267,619.3,REVENUE,Coastal Facilities Management Ltd
Gosport Borough Council,,SERVICE UNITS ADMIN COSTS,H4-6,,,,"PRINTING, STAT & OFFICE EXP",,,,,09/06/2011,15161,10.29,REVENUE,Ace Office Supplies Ltd
Gosport Borough Council,,SERVICE UNITS ADMIN COSTS,H4-6,,,,COMMUNICATIONS AND COMPUTING,,,,,09/06/2011,14761,"1,950.00",REVENUE,Coactive Aspiren Ltd
Gosport Borough Council,,SERVICE UNITS ADMIN COSTS,H4-6,,,,DIRECT EMPLOYEE EXPENSES,,,,,09/06/2011,15292,"2,550.00",REVENUE,Serco Rb Solutions
Gosport Borough Council,,SERVICE UNITS ADMIN COSTS,H4-6,,,,DIRECT EMPLOYEE EXPENSES,,,,,09/06/2011,15291,"3,915.00",REVENUE,Serco Rb Solutions
Gosport Borough Council,,SERVICE UNITS ADMIN COSTS,H4-6,,,,INDIRECT EMPLOYEE EXPENSES,,,,,09/06/2011,15187,182.98,REVENUE,Northgate Information Solutions
Gosport Borough Council,,CAPITAL,H4-9,,,,CAPITAL - PREMISES COSTS,,,,,09/06/2011,15332,975.8,CAPITAL,Howdens Joinery Company Ltd
Gosport Borough Council,,CAPITAL,H4-9,,,,"PRINTING, STAT & OFFICE EXP",,,,,09/06/2011,15178,244.74,CAPITAL,Robert Lihou
Gosport Borough Council,,CAPITAL,H4-9,,,,COMMUNICATIONS AND COMPUTING,,,,,09/06/2011,15249,"4,730.00",CAPITAL,Northgate Arinso Uk Ltd
Gosport Borough Council,,HOUSING SERVICES,H4-3,,,,MISCELLANEOUS EXPENSES,,,,,09/06/2011,15316,484.68,REVENUE,Capita Business Services Ltd
Gosport Borough Council,,HOUSING SERVICES,H4-3,,,,MISCELLANEOUS EXPENSES,,,,,09/06/2011,15307,"1,551.00",REVENUE,Simply Unite
Gosport Borough Council,,HOUSING SERVICES,H4-3,,,,CONTRACT HIRE & OPER LEASES,,,,,09/06/2011,15299,"2,727.36",REVENUE,Lex Autolease Ltd
Gosport Borough Council,,HOUSING SERVICES,H4-3,,,,CONTRACT HIRE & OPER LEASES,,,,,09/06/2011,15273,"2,727.36",REVENUE,Lex Autolease Ltd
Gosport Borough Council,,HOUSING SERVICES,H4-3,,,,REPAIRS AND MAINT OF BUILDINGS,,,,,09/06/2011,15344,"1,306.08",REVENUE,Thyssenkrupp Elevator Uk Ltd
Gosport Borough Council,,HOUSING SERVICES,H4-3,,,,REPAIRS AND MAINT OF BUILDINGS,,,,,09/06/2011,15283,"1,000.00",REVENUE,REDACTED
Gosport Borough Council,,HOUSING SERVICES,H4-3,,,,ADULT SOCIAL SERVICES,,,,,09/06/2011,15321,"1,000.00",REVENUE,REDACTED
Gosport Borough Council,,SERVICE UNITS ADMIN COSTS,H4-6,,,,SERVICES,,,,,15/06/2011,15519,875,REVENUE,Capita Symonds Ltd
Gosport Borough Council,,SERVICE UNITS ADMIN COSTS,H4-6,,,,SERVICES,,,,,15/06/2011,15517,50,REVENUE,H M Land Registry
Gosport Borough Council,,"CULTURAL, ENV AND PLANNING",H4-1,,,,MISCELLANEOUS EXPENSES,,,,,16/06/2011,15442,"2,095.00",REVENUE,Bpi Recycled Products
Gosport Borough Council,,"CULTURAL, ENV AND PLANNING",H4-1,,,,GROUNDS MAINTENANCE COSTS,,,,,16/06/2011,14372,"1,510.60",REVENUE,Gs Building Services Ltd
Gosport Borough Council,,"CULTURAL, ENV AND PLANNING",H4-1,,,,GROUNDS MAINTENANCE COSTS,,,,,16/06/2011,14871,460,REVENUE,Gs Building Services Ltd
Gosport Borough Council,,"CULTURAL, ENV AND PLANNING",H4-1,,,,GROUNDS MAINTENANCE COSTS,,,,,16/06/2011,14873,511,REVENUE,Gs Building Services Ltd
Gosport Borough Council,,"CULTURAL, ENV AND PLANNING",H4-1,,,,ENERGY COSTS,,,,,16/06/2011,15445,56.36,REVENUE,Southern Electric
Gosport Borough Council,,"CULTURAL, ENV AND PLANNING",H4-1,,,,"CLOTHES, UNIFORM AND LAUNDRY",,,,,16/06/2011,15477,96.3,REVENUE,Promo Logo Ltd
Gosport Borough Council,,"CULTURAL, ENV AND PLANNING",H4-1,,,,REPAIRS AND MAINT OF BUILDINGS,,,,,16/06/2011,15170,129.6,REVENUE,Advanced Lock & Locksmithing L
Gosport Borough Council,,"CULTURAL, ENV AND PLANNING",H4-1,,,,"PRINTING, STAT & OFFICE EXP",,,,,16/06/2011,15474,580.5,REVENUE,Longcombe Labels Ltd
Gosport Borough Council,,"CULTURAL, ENV AND PLANNING",H4-1,,,,INDEPENDENT UNITS IN COUNCIL,,,,,16/06/2011,15472,506.4,REVENUE,Otto Waste Solutions Limited
Gosport Borough Council,,"CULTURAL, ENV AND PLANNING",H4-1,,,,INDEPENDENT UNITS IN COUNCIL,,,,,16/06/2011,15529,"1,947.00",REVENUE,Hampshire County Council
Gosport Borough Council,,"CULTURAL, ENV AND PLANNING",H4-1,,,,SERVICES,,,,,16/06/2011,15526,416.67,REVENUE,Rspca Solent
Gosport Borough Council,,"CULTURAL, ENV AND PLANNING",H4-1,,,,SERVICES,,,,,16/06/2011,15527,750,REVENUE,Rspca Solent
Gosport Borough Council,,"CULTURAL, ENV AND PLANNING",H4-1,,,,OTHER ESTABLISHMENTS,,,,,16/06/2011,15531,950,REVENUE,Trafalgar Cleaning Equipment
Gosport Borough Council,,"HIGHWAYS, ROADS AND TRANSPORT",H4-2,,,,ADULT SOCIAL SERVICES,,,,,16/06/2011,15185,"-16,268.28",REVENUE,Euclid Ltd
Gosport Borough Council,,"HIGHWAYS, ROADS AND TRANSPORT",H4-2,,,,ADULT SOCIAL SERVICES,,,,,16/06/2011,15540,148.42,REVENUE,Euclid Ltd
Gosport Borough Council,,"HIGHWAYS, ROADS AND TRANSPORT",H4-2,,,,ADULT SOCIAL SERVICES,,,,,16/06/2011,15186,"16,268.28",REVENUE,Euclid Ltd
Gosport Borough Council,,"HIGHWAYS, ROADS AND TRANSPORT",H4-2,,,,ENERGY COSTS,,,,,16/06/2011,15447,247.52,REVENUE,Portsmouth Naval Base Property Trust
Gosport Borough Council,,"HIGHWAYS, ROADS AND TRANSPORT",H4-2,,,,"EQUIP, FURNITURE AND MATERIALS",,,,,16/06/2011,15476,42.98,REVENUE,Sew-Eurodrive Ltd
Gosport Borough Council,,"CULTURAL, ENV AND PLANNING",H4-1,,,,"PRINTING, STAT & OFFICE EXP",,,,,16/06/2011,15473,104.5,REVENUE,Environmental Protection Uk
Gosport Borough Council,,HOUSING SERVICES,H4-3,,,,GRANTS AND SUBSCRIPTIONS,,,,,16/06/2011,15548,420,REVENUE,REDACTED
Gosport Borough Council,,HOUSING SERVICES,H4-3,,,,GRANTS AND SUBSCRIPTIONS,,,,,16/06/2011,15547,525,REVENUE,REDACTED
Gosport Borough Council,,HOUSING SERVICES,H4-3,,,,GRANTS AND SUBSCRIPTIONS,,,,,16/06/2011,15546,435,REVENUE,REDACTED
Gosport Borough Council,,HOUSING SERVICES,H4-3,,,,GRANTS AND SUBSCRIPTIONS,,,,,16/06/2011,15556,"-1,212.00",REVENUE,REDACTED
Gosport Borough Council,,HOUSING SERVICES,H4-3,,,,GRANTS AND SUBSCRIPTIONS,,,,,16/06/2011,15559,280,REVENUE,REDACTED
Gosport Borough Council,,HOUSING SERVICES,H4-3,,,,GRANTS AND SUBSCRIPTIONS,,,,,16/06/2011,15560,240,REVENUE,REDACTED
Gosport Borough Council,,HOUSING SERVICES,H4-3,,,,GRANTS AND SUBSCRIPTIONS,,,,,16/06/2011,15557,560,REVENUE,REDACTED
Gosport Borough Council,,HOUSING SERVICES,H4-3,,,,GRANTS AND SUBSCRIPTIONS,,,,,16/06/2011,15558,560,REVENUE,REDACTED
Gosport Borough Council,,HOUSING SERVICES,H4-3,,,,HRA - PREMISES COSTS,,,,,16/06/2011,15543,180,REVENUE,REDACTED
Gosport Borough Council,,HOUSING SERVICES,H4-3,,,,GRANTS AND SUBSCRIPTIONS,,,,,16/06/2011,15627,945,REVENUE,REDACTED
Gosport Borough Council,,HOUSING SERVICES,H4-3,,,,"EQUIP, FURNITURE AND MATERIALS",,,,,16/06/2011,15465,16.7,REVENUE,Aadvark Supplies Ltd
Gosport Borough Council,,HOUSING SERVICES,H4-3,,,,GRANTS AND SUBSCRIPTIONS,,,,,16/06/2011,15486,"5,000.00",REVENUE,Basingstoke & Deane Borough Council
Gosport Borough Council,,HOUSING SERVICES,H4-3,,,,GRANTS AND SUBSCRIPTIONS,,,,,16/06/2011,15485,"5,000.00",REVENUE,East Hampshire District Council
Gosport Borough Council,,HOUSING SERVICES,H4-3,,,,GRANTS AND SUBSCRIPTIONS,,,,,16/06/2011,15487,"5,000.00",REVENUE,Havant Borough Council
Gosport Borough Council,,HOUSING SERVICES,H4-3,,,,SERVICES,,,,,16/06/2011,15450,10,REVENUE,Jacobs Well Care Centre
Gosport Borough Council,,HOUSING SERVICES,H4-3,,,,SERVICES,,,,,16/06/2011,15454,5,REVENUE,Jacobs Well Care Centre
Gosport Borough Council,,HOUSING SERVICES,H4-3,,,,SERVICES,,,,,16/06/2011,15453,10,REVENUE,Jacobs Well Care Centre
Gosport Borough Council,,HOUSING SERVICES,H4-3,,,,SERVICES,,,,,16/06/2011,15452,15,REVENUE,Jacobs Well Care Centre
Gosport Borough Council,,HOUSING SERVICES,H4-3,,,,SERVICES,,,,,16/06/2011,15449,5,REVENUE,Jacobs Well Care Centre
Gosport Borough Council,,HOUSING SERVICES,H4-3,,,,SERVICES,,,,,16/06/2011,15451,15,REVENUE,Jacobs Well Care Centre
Gosport Borough Council,,HOUSING SERVICES,H4-3,,,,GRANTS AND SUBSCRIPTIONS,,,,,16/06/2011,15488,"5,000.00",REVENUE,Test Valley Borough Council
Gosport Borough Council,,HOUSING SERVICES,H4-3,,,,GRANTS AND SUBSCRIPTIONS,,,,,16/06/2011,15549,405,REVENUE,The Seafarer Guest House
Gosport Borough Council,,HOUSING SERVICES,H4-3,,,,GRANTS AND SUBSCRIPTIONS,,,,,16/06/2011,15180,"-15,073.83",REVENUE,REDACTED
Gosport Borough Council,,HOUSING SERVICES,H4-3,,,,GRANTS AND SUBSCRIPTIONS,,,,,16/06/2011,15181,"15,403.31",REVENUE,REDACTED
Gosport Borough Council,,HOUSING SERVICES,H4-3,,,,GRANTS AND SUBSCRIPTIONS,,,,,16/06/2011,15178,330.94,REVENUE,REDACTED
Gosport Borough Council,,HOUSING SERVICES,H4-3,,,,GRANTS AND SUBSCRIPTIONS,,,,,16/06/2011,15187,"-9,075.26",REVENUE,REDACTED
Gosport Borough Council,,HOUSING SERVICES,H4-3,,,,GRANTS AND SUBSCRIPTIONS,,,,,16/06/2011,15174,408.81,REVENUE,REDACTED
Gosport Borough Council,,HOUSING SERVICES,H4-3,,,,GRANTS AND SUBSCRIPTIONS,,,,,16/06/2011,15188,"9,075.26",REVENUE,REDACTED
Gosport Borough Council,,HOUSING SERVICES,H4-3,,,,GRANTS AND SUBSCRIPTIONS,,,,,16/06/2011,15193,"1,131.65",REVENUE,REDACTED
Gosport Borough Council,,HOUSING SERVICES,H4-3,,,,GRANTS AND SUBSCRIPTIONS,,,,,16/06/2011,15170,402.61,REVENUE,REDACTED
Gosport Borough Council,,HOUSING SERVICES,H4-3,,,,GRANTS AND SUBSCRIPTIONS,,,,,16/06/2011,15182,"-16,935.91",REVENUE,REDACTED
Gosport Borough Council,,HOUSING SERVICES,H4-3,,,,GRANTS AND SUBSCRIPTIONS,,,,,16/06/2011,15173,402.33,REVENUE,REDACTED
Gosport Borough Council,,HOUSING SERVICES,H4-3,,,,GRANTS AND SUBSCRIPTIONS,,,,,16/06/2011,15183,"16,943.53",REVENUE,REDACTED
Gosport Borough Council,,HOUSING SERVICES,H4-3,,,,GRANTS AND SUBSCRIPTIONS,,,,,16/06/2011,15175,"-17,806.71",REVENUE,REDACTED
Gosport Borough Council,,HOUSING SERVICES,H4-3,,,,GRANTS AND SUBSCRIPTIONS,,,,,16/06/2011,15194,776.93,REVENUE,REDACTED
Gosport Borough Council,,HOUSING SERVICES,H4-3,,,,GRANTS AND SUBSCRIPTIONS,,,,,16/06/2011,15176,"17,740.87",REVENUE,REDACTED
Gosport Borough Council,,HOUSING SERVICES,H4-3,,,,GRANTS AND SUBSCRIPTIONS,,,,,16/06/2011,15164,-659.04,REVENUE,REDACTED
Gosport Borough Council,,HOUSING SERVICES,H4-3,,,,GRANTS AND SUBSCRIPTIONS,,,,,16/06/2011,15161,-556.25,REVENUE,REDACTED
Gosport Borough Council,,HOUSING SERVICES,H4-3,,,,GRANTS AND SUBSCRIPTIONS,,,,,16/06/2011,15165,564.55,REVENUE,REDACTED
Gosport Borough Council,,HOUSING SERVICES,H4-3,,,,GRANTS AND SUBSCRIPTIONS,,,,,16/06/2011,15162,693.13,REVENUE,REDACTED
Gosport Borough Council,,HOUSING SERVICES,H4-3,,,,GRANTS AND SUBSCRIPTIONS,,,,,16/06/2011,15177,513.02,REVENUE,REDACTED
Gosport Borough Council,,HOUSING SERVICES,H4-3,,,,GRANTS AND SUBSCRIPTIONS,,,,,16/06/2011,15195,516.37,REVENUE,REDACTED
Gosport Borough Council,,HOUSING SERVICES,H4-3,,,,GRANTS AND SUBSCRIPTIONS,,,,,16/06/2011,15494,150,REVENUE,Brite-Move
Gosport Borough Council,,HOUSING SERVICES,H4-3,,,,GRANTS AND SUBSCRIPTIONS,,,,,16/06/2011,15495,150,REVENUE,Brite-Move
Gosport Borough Council,,HOUSING SERVICES,H4-3,,,,GRANTS AND SUBSCRIPTIONS,,,,,16/06/2011,15189,647.52,REVENUE,Brite-Move
Gosport Borough Council,,HOUSING SERVICES,H4-3,,,,GRANTS AND SUBSCRIPTIONS,,,,,16/06/2011,15554,60,REVENUE,David Seymour & Associates
Gosport Borough Council,,HOUSING SERVICES,H4-3,,,,GRANTS AND SUBSCRIPTIONS,,,,,16/06/2011,15553,150,REVENUE,David Seymour & Associates
Gosport Borough Council,,HOUSING SERVICES,H4-3,,,,GRANTS AND SUBSCRIPTIONS,,,,,16/06/2011,15185,-827.36,REVENUE,Elite Property Management
Gosport Borough Council,,HOUSING SERVICES,H4-3,,,,GRANTS AND SUBSCRIPTIONS,,,,,16/06/2011,15498,150,REVENUE,Elite Property Management
Gosport Borough Council,,HOUSING SERVICES,H4-3,,,,GRANTS AND SUBSCRIPTIONS,,,,,16/06/2011,15496,150,REVENUE,Elite Property Management
Gosport Borough Council,,HOUSING SERVICES,H4-3,,,,GRANTS AND SUBSCRIPTIONS,,,,,16/06/2011,15497,150,REVENUE,Elite Property Management
Gosport Borough Council,,HOUSING SERVICES,H4-3,,,,GRANTS AND SUBSCRIPTIONS,,,,,16/06/2011,15184,827.36,REVENUE,Elite Property Management
Gosport Borough Council,,HOUSING SERVICES,H4-3,,,,GRANTS AND SUBSCRIPTIONS,,,,,16/06/2011,15186,827.36,REVENUE,Elite Property Management
Gosport Borough Council,,HOUSING SERVICES,H4-3,,,,GRANTS AND SUBSCRIPTIONS,,,,,16/06/2011,15492,150,REVENUE,Fairhalls
Gosport Borough Council,,HOUSING SERVICES,H4-3,,,,GRANTS AND SUBSCRIPTIONS,,,,,16/06/2011,15493,150,REVENUE,Fairhalls
Gosport Borough Council,,HOUSING SERVICES,H4-3,,,,GRANTS AND SUBSCRIPTIONS,,,,,16/06/2011,15163,564.55,REVENUE,Fairhalls
Gosport Borough Council,,HOUSING SERVICES,H4-3,,,,GRANTS AND SUBSCRIPTIONS,,,,,16/06/2011,15555,225,REVENUE,David Seymour & Associates
Gosport Borough Council,,HOUSING SERVICES,H4-3,,,,GRANTS AND SUBSCRIPTIONS,,,,,16/06/2011,15541,796.4,REVENUE,Elite Property Management
Gosport Borough Council,,CENTRAL SERVICES TO THE PUBLIC,H4-5,,,,INDEPENDENT UNITS IN COUNCIL,,,,,16/06/2011,15565,"1,669.85",REVENUE,Hampshire County Council
Gosport Borough Council,,"CULTURAL, ENV AND PLANNING",H4-1,,,,COMMUNICATIONS AND COMPUTING,,,,,16/06/2011,15479,107.13,REVENUE,Newnet Plc
Gosport Borough Council,,"CULTURAL, ENV AND PLANNING",H4-1,,,,GRANTS AND SUBSCRIPTIONS,,,,,16/06/2011,15508,"4,000.00",REVENUE,Groundwork Solent
Gosport Borough Council,,"CULTURAL, ENV AND PLANNING",H4-1,,,,INDEPENDENT UNITS IN COUNCIL,,,,,16/06/2011,15500,"4,885.00",REVENUE,Chroma Vision Ltd
Gosport Borough Council,,"CULTURAL, ENV AND PLANNING",H4-1,,,,MISCELLANEOUS EXPENSES,,,,,16/06/2011,15470,12.9,REVENUE,Recognition Express (Southern)
Gosport Borough Council,,"CULTURAL, ENV AND PLANNING",H4-1,,,,INDEPENDENT UNITS IN COUNCIL,,,,,16/06/2011,15484,"-16,411.24",REVENUE,Fareham Borough Council
Gosport Borough Council,,"CULTURAL, ENV AND PLANNING",H4-1,,,,INDEPENDENT UNITS IN COUNCIL,,,,,16/06/2011,15483,"18,136.63",REVENUE,Fareham Borough Council
Gosport Borough Council,,"CULTURAL, ENV AND PLANNING",H4-1,,,,REPAIRS AND MAINT OF BUILDINGS,,,,,16/06/2011,14733,583.08,REVENUE,Gs Building Services Ltd
Gosport Borough Council,,"CULTURAL, ENV AND PLANNING",H4-1,,,,REPAIRS AND MAINT OF BUILDINGS,,,,,16/06/2011,15515,561.39,REVENUE,Lucas Windebank & Mcnally
Gosport Borough Council,,CORPORATE AND DEMOCRATIC CORE,H4-4,,,,MISCELLANEOUS EXPENSES,,,,,16/06/2011,15545,975,REVENUE,Echelon Consultancy Ltd
Gosport Borough Council,,CORPORATE AND DEMOCRATIC CORE,H4-4,,,,MISCELLANEOUS EXPENSES,,,,,16/06/2011,15542,"9,834.00",REVENUE,Trowers & Hamlins Llp
Gosport Borough Council,,CORPORATE AND DEMOCRATIC CORE,H4-4,,,,MISCELLANEOUS EXPENSES,,,,,16/06/2011,15491,27.6,REVENUE,Varieties Catering
Gosport Borough Council,,CENTRAL SERVICES TO THE PUBLIC,H4-5,,,,"EQUIP, FURNITURE AND MATERIALS",,,,,16/06/2011,15443,34.02,REVENUE,Arco Limited
Gosport Borough Council,,"CULTURAL, ENV AND PLANNING",H4-1,,,,MISCELLANEOUS EXPENSES,,,,,16/06/2011,15507,30,REVENUE,REDACTED
Gosport Borough Council,,"CULTURAL, ENV AND PLANNING",H4-1,,,,MISCELLANEOUS EXPENSES,,,,,16/06/2011,15505,8.4,REVENUE,Streamline Taxis (Gosport) Ltd
Gosport Borough Council,,"CULTURAL, ENV AND PLANNING",H4-1,,,,MISCELLANEOUS EXPENSES,,,,,16/06/2011,15506,110.4,REVENUE,Streamline Taxis (Gosport) Ltd
Gosport Borough Council,,"CULTURAL, ENV AND PLANNING",H4-1,,,,MISCELLANEOUS EXPENSES,,,,,16/06/2011,15471,16.8,REVENUE,United Balloon And Gas
Gosport Borough Council,,CENTRAL SERVICES TO THE PUBLIC,H4-5,,,,MISCELLANEOUS EXPENSES,,,,,16/06/2011,15544,100,REVENUE,Hampshire County Council
Gosport Borough Council,,CENTRAL SERVICES TO THE PUBLIC,H4-5,,,,MISCELLANEOUS EXPENSES,,,,,16/06/2011,15566,350,REVENUE,Lee On The Solent Methodist Church
Gosport Borough Council,,SERVICE UNITS ADMIN COSTS,H4-6,,,,"PRINTING, STAT & OFFICE EXP",,,,,16/06/2011,15448,680,REVENUE,Mercury Graphics Ltd
Gosport Borough Council,,SERVICE UNITS ADMIN COSTS,H4-6,,,,GRANTS AND SUBSCRIPTIONS,,,,,16/06/2011,15569,50,REVENUE,Iccm
Gosport Borough Council,,SERVICE UNITS ADMIN COSTS,H4-6,,,,"EQUIP, FURNITURE AND MATERIALS",,,,,16/06/2011,15599,960.64,REVENUE,Qmatic (United Kingdom) Ltd
Gosport Borough Council,,SERVICE UNITS ADMIN COSTS,H4-6,,,,DIRECT EMPLOYEE EXPENSES,,,,,16/06/2011,15625,787.5,REVENUE,Fusion People Limited
Gosport Borough Council,,SERVICE UNITS ADMIN COSTS,H4-6,,,,DIRECT EMPLOYEE EXPENSES,,,,,16/06/2011,15499,693,REVENUE,Fusion People Limited
Gosport Borough Council,,SERVICE UNITS ADMIN COSTS,H4-6,,,,MEMBERS� ALLOWANCES,,,,,16/06/2011,15481,86,REVENUE,Streamline Taxis (Gosport) Ltd
Gosport Borough Council,,SERVICE UNITS ADMIN COSTS,H4-6,,,,INDIRECT EMPLOYEE EXPENSES,,,,,16/06/2011,15482,419.51,REVENUE,Western Challenge Housing Assoc Ltd
Gosport Borough Council,,SERVICE UNITS ADMIN COSTS,H4-6,,,,SERVICES,,,,,16/06/2011,15444,750,REVENUE,Daniells Harrison Chartered Surveyors
Gosport Borough Council,,SERVICE UNITS ADMIN COSTS,H4-6,,,,INDIRECT EMPLOYEE EXPENSES,,,,,16/06/2011,15246,890,REVENUE,Chartered Institute Of Internal Auditors
Gosport Borough Council,,SERVICE UNITS ADMIN COSTS,H4-6,,,,INDIRECT EMPLOYEE EXPENSES,,,,,16/06/2011,15502,250,REVENUE,Woodward Lewis Associates Ltd
Gosport Borough Council,,SERVICE UNITS ADMIN COSTS,H4-6,,,,INDIRECT EMPLOYEE EXPENSES,,,,,16/06/2011,15504,300,REVENUE,Woodward Lewis Associates Ltd
Gosport Borough Council,,SERVICE UNITS ADMIN COSTS,H4-6,,,,INDIRECT EMPLOYEE EXPENSES,,,,,16/06/2011,15503,350,REVENUE,Woodward Lewis Associates Ltd
Gosport Borough Council,,SERVICE UNITS ADMIN COSTS,H4-6,,,,COMMUNICATIONS AND COMPUTING,,,,,16/06/2011,15528,2.48,REVENUE,Vodafone Ltd
Gosport Borough Council,,SERVICE UNITS ADMIN COSTS,H4-6,,,,COMMUNICATIONS AND COMPUTING,,,,,16/06/2011,15528,12.77,REVENUE,Vodafone Ltd
Gosport Borough Council,,SERVICE UNITS ADMIN COSTS,H4-6,,,,COMMUNICATIONS AND COMPUTING,,,,,16/06/2011,15475,110,REVENUE,2cl Communications Ltd
Gosport Borough Council,,SERVICE UNITS ADMIN COSTS,H4-6,,,,COMMUNICATIONS AND COMPUTING,,,,,16/06/2011,14980,650,REVENUE,2cl Communications Ltd
Gosport Borough Council,,SERVICE UNITS ADMIN COSTS,H4-6,,,,COMMUNICATIONS AND COMPUTING,,,,,16/06/2011,14979,"3,340.90",REVENUE,2cl Communications Ltd
Gosport Borough Council,,SERVICE UNITS ADMIN COSTS,H4-6,,,,"EQUIP, FURNITURE AND MATERIALS",,,,,16/06/2011,14991,755,REVENUE,Cisilion Ltd
Gosport Borough Council,,SERVICE UNITS ADMIN COSTS,H4-6,,,,COMMUNICATIONS AND COMPUTING,,,,,16/06/2011,15480,"4,515.00",REVENUE,Hopewiser
Gosport Borough Council,,SERVICE UNITS ADMIN COSTS,H4-6,,,,COMMUNICATIONS AND COMPUTING,,,,,16/06/2011,15461,396.48,REVENUE,Rubicon Workflow Solutions Ltd
Gosport Borough Council,,SERVICE UNITS ADMIN COSTS,H4-6,,,,"EQUIP, FURNITURE AND MATERIALS",,,,,16/06/2011,15163,49.03,REVENUE,Southern Paper Group
Gosport Borough Council,,SERVICE UNITS ADMIN COSTS,H4-6,,,,MISCELLANEOUS EXPENSES,,,,,16/06/2011,15539,66.95,REVENUE,Tnt Uk Ltd
Gosport Borough Council,,SERVICE UNITS ADMIN COSTS,H4-6,,,,"PRINTING, STAT & OFFICE EXP",,,,,16/06/2011,15537,96.63,REVENUE,Xerox (Uk) Ltd
Gosport Borough Council,,SERVICE UNITS ADMIN COSTS,H4-6,,,,FIXTURES AND FITTINGS,,,,,16/06/2011,15568,"7,202.00",REVENUE,Netcall Telecom Limited
Gosport Borough Council,,SERVICE UNITS ADMIN COSTS,H4-6,,,,DIRECT EMPLOYEE EXPENSES,,,,,16/06/2011,15536,251.94,REVENUE,Select Appointments
Gosport Borough Council,,SERVICE UNITS ADMIN COSTS,H4-6,,,,DIRECT EMPLOYEE EXPENSES,,,,,16/06/2011,15570,256.88,REVENUE,Select Appointments
Gosport Borough Council,,SERVICE UNITS ADMIN COSTS,H4-6,,,,DIRECT EMPLOYEE EXPENSES,,,,,16/06/2011,15571,242.06,REVENUE,Select Appointments
Gosport Borough Council,,SERVICE UNITS ADMIN COSTS,H4-6,,,,ENERGY COSTS,,,,,16/06/2011,15538,"3,746.78",REVENUE,E.On
Gosport Borough Council,,SERVICE UNITS ADMIN COSTS,H4-6,,,,REPAIRS AND MAINT OF BUILDINGS,,,,,16/06/2011,15513,130.7,REVENUE,Lucas Windebank & Mcnally
Gosport Borough Council,,SERVICE UNITS ADMIN COSTS,H4-6,,,,SERVICES,,,,,16/06/2011,15550,"4,877.60",REVENUE,Aea Bookings
Gosport Borough Council,,SERVICE UNITS ADMIN COSTS,H4-6,,,,"PRINTING, STAT & OFFICE EXP",,,,,16/06/2011,15564,249,REVENUE,Emap Communications Ltd
Gosport Borough Council,,SERVICE UNITS ADMIN COSTS,H4-6,,,,"EQUIP, FURNITURE AND MATERIALS",,,,,16/06/2011,15600,420,REVENUE,Pressure Seal Solutions Ltd
Gosport Borough Council,,SERVICE UNITS ADMIN COSTS,H4-6,,,,"EQUIP, FURNITURE AND MATERIALS",,,,,16/06/2011,15599,960.64,REVENUE,Qmatic (United Kingdom) Ltd
Gosport Borough Council,,SERVICE UNITS ADMIN COSTS,H4-6,,,,"EQUIP, FURNITURE AND MATERIALS",,,,,16/06/2011,15599,960.64,REVENUE,Qmatic (United Kingdom) Ltd
Gosport Borough Council,,CAPITAL,H4-9,,,,CAPITAL - PREMISES COSTS,,,,,16/06/2011,15489,"1,032.00",CAPITAL,Blakes Property Consultants Limited
Gosport Borough Council,,CAPITAL,H4-9,,,,SERVICES,,,,,16/06/2011,15576,"46,179.55",CAPITAL,Atkins Ltd
Gosport Borough Council,,CAPITAL,H4-9,,,,SERVICES,,,,,16/06/2011,15593,"1,121.00",CAPITAL,Bircham Dyson Bell Llp
Gosport Borough Council,,CAPITAL,H4-9,,,,"PRINTING, STAT & OFFICE EXP",,,,,16/06/2011,15183,522,CAPITAL,Roberts Limbrick Ltd
Gosport Borough Council,,CAPITAL,H4-9,,,,CAPITAL - PREMISES COSTS,,,,,16/06/2011,14866,"7,242.26",CAPITAL,Gs Building Services Ltd
Gosport Borough Council,,CAPITAL,H4-9,,,,CAPITAL - PREMISES COSTS,,,,,16/06/2011,15581,432.5,CAPITAL,Gs Building Services Ltd
Gosport Borough Council,,CAPITAL,H4-9,,,,COMMUNICATIONS AND COMPUTING,,,,,16/06/2011,15182,"1,100.00",CAPITAL,Northgate Information Solutions
Gosport Borough Council,,CAPITAL,H4-9,,,,OTHER GRANTS REIMB AND CONT,,,,,16/06/2011,15590,"5,650.00",CAPITAL,Fareham Borough Council
Gosport Borough Council,,CAPITAL,H4-9,,,,SERVICES,,,,,16/06/2011,15501,629.91,CAPITAL,Jeffery Wood
Gosport Borough Council,,HOUSING SERVICES,H4-3,,,,COMMUNICATIONS AND COMPUTING,,,,,16/06/2011,15551,129.73,REVENUE,Talk Talk Business
Gosport Borough Council,,HOUSING SERVICES,H4-3,,,,CLEANING AND DOMESTIC SUPPLIES,,,,,16/06/2011,15624,544.37,REVENUE,1st Choice Hlc & M Limited
Gosport Borough Council,,HOUSING SERVICES,H4-3,,,,"EQUIP, FURNITURE AND MATERIALS",,,,,16/06/2011,15464,5.61,REVENUE,Aadvark Supplies Ltd
Gosport Borough Council,,HOUSING SERVICES,H4-3,,,,"EQUIP, FURNITURE AND MATERIALS",,,,,16/06/2011,15463,6.14,REVENUE,Aadvark Supplies Ltd
Gosport Borough Council,,HOUSING SERVICES,H4-3,,,,"EQUIP, FURNITURE AND MATERIALS",,,,,16/06/2011,15462,6.97,REVENUE,Aadvark Supplies Ltd
Gosport Borough Council,,HOUSING SERVICES,H4-3,,,,HRA - PREMISES COSTS,,,,,16/06/2011,15552,66.92,REVENUE,Advanced Lock & Locksmithing L
Gosport Borough Council,,HOUSING SERVICES,H4-3,,,,ENERGY COSTS,,,,,16/06/2011,15490,120.57,REVENUE,Southern Electric
Gosport Borough Council,,HOUSING SERVICES,H4-3,,,,ADULT SOCIAL SERVICES,,,,,16/06/2011,15622,"1,000.00",REVENUE,REDACTED
Gosport Borough Council,,HOUSING SERVICES,H4-3,,,,ADULT SOCIAL SERVICES,,,,,16/06/2011,15623,"1,000.00",REVENUE,REDACTED
Gosport Borough Council,,HOUSING SERVICES,H4-3,,,,GRANTS AND SUBSCRIPTIONS,,,,,17/06/2011,15743,680,REVENUE,REDACTED
Gosport Borough Council,,SERVICE UNITS ADMIN COSTS,H4-6,,,,SERVICES,,,,,22/06/2011,15518,45,REVENUE,Hmcts
Gosport Borough Council,,"CULTURAL, ENV AND PLANNING",H4-1,,,,OTHER GRANTS REIMB AND CONT,,,,,23/06/2011,871,"5,000.00",REVENUE,Chaps Treasury Management
Gosport Borough Council,,"CULTURAL, ENV AND PLANNING",H4-1,,,,"EQUIP, FURNITURE AND MATERIALS",,,,,23/06/2011,15567,"15,194.00",REVENUE,Leafield Environmental
Gosport Borough Council,,"CULTURAL, ENV AND PLANNING",H4-1,,,,GRANTS AND SUBSCRIPTIONS,,,,,23/06/2011,15917,"12,079.90",REVENUE,Hampshire County Council
Gosport Borough Council,,"CULTURAL, ENV AND PLANNING",H4-1,,,,"EQUIP, FURNITURE AND MATERIALS",,,,,23/06/2011,15900,"15,073.91",REVENUE,Downs View Nurseries Ltd
Gosport Borough Council,,"CULTURAL, ENV AND PLANNING",H4-1,,,,ENERGY COSTS,,,,,23/06/2011,866,-571.32,REVENUE,Shell Gas Direct Ltd
Gosport Borough Council,,"CULTURAL, ENV AND PLANNING",H4-1,,,,ENERGY COSTS,,,,,23/06/2011,865,689.27,REVENUE,Shell Gas Direct Ltd
Gosport Borough Council,,"CULTURAL, ENV AND PLANNING",H4-1,,,,OTHER ESTABLISHMENTS,,,,,23/06/2011,15913,555.98,REVENUE,Trafalgar Cleaning Equipment
Gosport Borough Council,,"HIGHWAYS, ROADS AND TRANSPORT",H4-2,,,,REPAIRS AND MAINT OF BUILDINGS,,,,,23/06/2011,15195,88.95,REVENUE,Gs Building Services Ltd
Gosport Borough Council,,"CULTURAL, ENV AND PLANNING",H4-1,,,,"EQUIP, FURNITURE AND MATERIALS",,,,,23/06/2011,15919,"3,620.00",REVENUE,Baker Trayte Marine Ltd
Gosport Borough Council,,HOUSING SERVICES,H4-3,,,,COMMUNICATIONS AND COMPUTING,,,,,23/06/2011,15839,436.8,REVENUE,Guinness Care And Support Limited
Gosport Borough Council,,HOUSING SERVICES,H4-3,,,,GRANTS AND SUBSCRIPTIONS,,,,,23/06/2011,15931,"5,000.00",REVENUE,Winchester City Council
Gosport Borough Council,,CENTRAL SERVICES TO THE PUBLIC,H4-5,,,,COMMUNICATIONS AND COMPUTING,,,,,23/06/2011,15945,615.52,REVENUE,Royal Mail Group Plc
Gosport Borough Council,,HOUSING SERVICES,H4-3,,,,HOUSING BENEFITS,,,,,23/06/2011,15225,716.28,REVENUE,REDACTED
Gosport Borough Council,,SERVICE UNITS ADMIN COSTS,H4-6,,,,MISCELLANEOUS EXPENSES,,,,,23/06/2011,15805,"5,000.00",REVENUE,Colin Buchanan
Gosport Borough Council,,"CULTURAL, ENV AND PLANNING",H4-1,,,,MISCELLANEOUS EXPENSES,,,,,23/06/2011,15929,"7,500.00",REVENUE,Oco Global
Gosport Borough Council,,"CULTURAL, ENV AND PLANNING",H4-1,,,,MISCELLANEOUS EXPENSES,,,,,23/06/2011,15928,"6,238.75",REVENUE,Dtz Consulting & Research
Gosport Borough Council,,"CULTURAL, ENV AND PLANNING",H4-1,,,,SERVICES,,,,,23/06/2011,15906,701.58,REVENUE,Ross Associates
Gosport Borough Council,,"CULTURAL, ENV AND PLANNING",H4-1,,,,SERVICES,,,,,23/06/2011,15904,712.78,REVENUE,Ross Associates
Gosport Borough Council,,"CULTURAL, ENV AND PLANNING",H4-1,,,,SERVICES,,,,,23/06/2011,15907,"1,020.00",REVENUE,Ross Associates
Gosport Borough Council,,"CULTURAL, ENV AND PLANNING",H4-1,,,,SERVICES,,,,,23/06/2011,15905,"1,912.50",REVENUE,Ross Associates
Gosport Borough Council,,CENTRAL SERVICES TO THE PUBLIC,H4-5,,,,GRANTS AND SUBSCRIPTIONS,,,,,23/06/2011,15875,"1,985.44",REVENUE,Hampshire County Council
Gosport Borough Council,,CORPORATE AND DEMOCRATIC CORE,H4-4,,,,INDIRECT EMPLOYEE EXPENSES,,,,,23/06/2011,15854,"3,074.03",REVENUE,Thistle Insurance Services Ltd
Gosport Borough Council,,CORPORATE AND DEMOCRATIC CORE,H4-4,,,,EXPENSES,,,,,23/06/2011,15831,932.58,REVENUE,Zurich Municipal
Gosport Borough Council,,CORPORATE AND DEMOCRATIC CORE,H4-4,,,,EXPENSES,,,,,23/06/2011,15834,"2,392.39",REVENUE,Zurich Municipal
Gosport Borough Council,,CORPORATE AND DEMOCRATIC CORE,H4-4,,,,EXPENSES,,,,,23/06/2011,15830,"7,391.22",REVENUE,Zurich Municipal
Gosport Borough Council,,CORPORATE AND DEMOCRATIC CORE,H4-4,,,,EXPENSES,,,,,23/06/2011,15832,"12,526.00",REVENUE,Zurich Municipal
Gosport Borough Council,,CORPORATE AND DEMOCRATIC CORE,H4-4,,,,EXPENSES,,,,,23/06/2011,15835,"242,371.31",REVENUE,Zurich Municipal
Gosport Borough Council,,CORPORATE AND DEMOCRATIC CORE,H4-4,,,,CONTRACT HIRE & OPER LEASES,,,,,23/06/2011,15898,430,REVENUE,Lucas Windebank & Mcnally
Gosport Borough Council,,CORPORATE AND DEMOCRATIC CORE,H4-4,,,,SERVICES,,,,,23/06/2011,15791,"10,212.00",REVENUE,Audit Commission
Gosport Borough Council,,SERVICE UNITS ADMIN COSTS,H4-6,,,,DIRECT EMPLOYEE EXPENSES,,,,,23/06/2011,859,-355.29,REVENUE,A O Shipley
Gosport Borough Council,,SERVICE UNITS ADMIN COSTS,H4-6,,,,DIRECT EMPLOYEE EXPENSES,,,,,23/06/2011,859,-592.16,REVENUE,A O Shipley
Gosport Borough Council,,SERVICE UNITS ADMIN COSTS,H4-6,,,,COMMUNICATIONS AND COMPUTING,,,,,23/06/2011,15892,"3,747.50",REVENUE,Capita Business Services Ltd
Gosport Borough Council,,SERVICE UNITS ADMIN COSTS,H4-6,,,,"EQUIP, FURNITURE AND MATERIALS",,,,,23/06/2011,15827,"6,585.00",REVENUE,The Powerworks Limited
Gosport Borough Council,,SERVICE UNITS ADMIN COSTS,H4-6,,,,"EQUIP, FURNITURE AND MATERIALS",,,,,23/06/2011,15888,"1,359.41",REVENUE,Presstek Europe Ltd
Gosport Borough Council,,SERVICE UNITS ADMIN COSTS,H4-6,,,,DIRECT EMPLOYEE EXPENSES,,,,,23/06/2011,859,-592.16,REVENUE,A O Shipley
Gosport Borough Council,,SERVICE UNITS ADMIN COSTS,H4-6,,,,DIRECT EMPLOYEE EXPENSES,,,,,23/06/2011,15836,621.5,REVENUE,Coastal Facilities Management Ltd
Gosport Borough Council,,SERVICE UNITS ADMIN COSTS,H4-6,,,,DIRECT EMPLOYEE EXPENSES,,,,,23/06/2011,15838,627,REVENUE,Coastal Facilities Management Ltd
Gosport Borough Council,,SERVICE UNITS ADMIN COSTS,H4-6,,,,REPAIRS AND MAINT OF BUILDINGS,,,,,23/06/2011,15821,580.77,REVENUE,Lucas Windebank & Mcnally
Gosport Borough Council,,SERVICE UNITS ADMIN COSTS,H4-6,,,,RENTS,,,,,23/06/2011,888,"1,995.00",REVENUE,M  & L Properties
Gosport Borough Council,,SERVICE UNITS ADMIN COSTS,H4-6,,,,ENERGY COSTS,,,,,23/06/2011,878,738.23,REVENUE,Smartest Energy
Gosport Borough Council,,SERVICE UNITS ADMIN COSTS,H4-6,,,,DIRECT EMPLOYEE EXPENSES,,,,,23/06/2011,859,"-2,865.83",REVENUE,A O Shipley
Gosport Borough Council,,SERVICE UNITS ADMIN COSTS,H4-6,,,,DIRECT EMPLOYEE EXPENSES,,,,,23/06/2011,859,"-1,421.18",REVENUE,A O Shipley
Gosport Borough Council,,SERVICE UNITS ADMIN COSTS,H4-6,,,,DIRECT EMPLOYEE EXPENSES,,,,,23/06/2011,15901,"1,245.00",REVENUE,Serco Rb Solutions
Gosport Borough Council,,SERVICE UNITS ADMIN COSTS,H4-6,,,,DIRECT EMPLOYEE EXPENSES,,,,,23/06/2011,15891,"2,445.00",REVENUE,Serco Rb Solutions
Gosport Borough Council,,CAPITAL,H4-9,,,,CAPITAL - PREMISES COSTS,,,,,23/06/2011,15794,839.2,CAPITAL,Howdens Joinery Company Ltd
Gosport Borough Council,,CAPITAL,H4-9,,,,CAPITAL - PREMISES COSTS,,,,,23/06/2011,15930,424.62,CAPITAL,Sac Ltd
Gosport Borough Council,,CAPITAL,H4-9,,,,CAPITAL - PREMISES COSTS,,,,,23/06/2011,15939,"20,833.33",CAPITAL,Kier Building Maintenance
Gosport Borough Council,,CAPITAL,H4-9,,,,CAPITAL - PREMISES COSTS,,,,,23/06/2011,15939,"25,000.00",CAPITAL,Kier Building Maintenance
Gosport Borough Council,,CAPITAL,H4-9,,,,CAPITAL - PREMISES COSTS,,,,,23/06/2011,15909,"1,349.00",CAPITAL,Liftech Systems (Se) Ltd
Gosport Borough Council,,CAPITAL,H4-9,,,,CAPITAL - PREMISES COSTS,,,,,23/06/2011,15917,"7,689.00",CAPITAL,Hampshire County Council
Gosport Borough Council,,HOUSING SERVICES,H4-3,,,,SERVICES,,,,,23/06/2011,870,500,REVENUE,Nat West
Gosport Borough Council,,HOUSING SERVICES,H4-3,,,,ENERGY COSTS,,,,,23/06/2011,889,"2,447.23",REVENUE,Shell Gas Direct Ltd
Gosport Borough Council,,HOUSING SERVICES,H4-3,,,,ENERGY COSTS,,,,,23/06/2011,15837,"2,447.23",REVENUE,Shell Gas Direct Ltd
Gosport Borough Council,,HOUSING SERVICES,H4-3,,,,REPAIRS AND MAINT OF BUILDINGS,,,,,23/06/2011,15939,"29,166.67",REVENUE,Kier Building Maintenance
Gosport Borough Council,,HOUSING SERVICES,H4-3,,,,REPAIRS AND MAINT OF BUILDINGS,,,,,23/06/2011,15881,700,REVENUE,Gerald Honey Partnership
Gosport Borough Council,,HOUSING SERVICES,H4-3,,,,EXPENSES,,,,,23/06/2011,15859,"38,769.92",REVENUE,Zurich Municipal
Gosport Borough Council,,HOUSING SERVICES,H4-3,,,,RENTS,,,,,24/06/2011,15370,"12,500.00",REVENUE,Stoke Gardens Guest Houses
Gosport Borough Council,,HOUSING SERVICES,H4-3,,,,HOUSING BENEFITS,,,,,24/06/2011,916,"1,497,571.26",REVENUE,Benefit Rent Allowance
Gosport Borough Council,,SERVICE UNITS ADMIN COSTS,H4-6,,,,PUBLIC TRANSPORT,,,,,24/06/2011,917,66,REVENUE,Rsp Travel Warrants
Gosport Borough Council,,SERVICE UNITS ADMIN COSTS,H4-6,,,,PUBLIC TRANSPORT,,,,,24/06/2011,917,59.9,REVENUE,Rsp Travel Warrants
Gosport Borough Council,,SERVICE UNITS ADMIN COSTS,H4-6,,,,PUBLIC TRANSPORT,,,,,24/06/2011,917,9.5,REVENUE,Rsp Travel Warrants
Gosport Borough Council,,SERVICE UNITS ADMIN COSTS,H4-6,,,,PUBLIC TRANSPORT,,,,,24/06/2011,917,66,REVENUE,Rsp Travel Warrants
Gosport Borough Council,,SERVICE UNITS ADMIN COSTS,H4-6,,,,PUBLIC TRANSPORT,,,,,24/06/2011,917,15,REVENUE,Rsp Travel Warrants
Gosport Borough Council,,SERVICE UNITS ADMIN COSTS,H4-6,,,,PUBLIC TRANSPORT,,,,,24/06/2011,917,291,REVENUE,Rsp Travel Warrants
Gosport Borough Council,,SERVICE UNITS ADMIN COSTS,H4-6,,,,PUBLIC TRANSPORT,,,,,24/06/2011,917,14.4,REVENUE,Rsp Travel Warrants
Gosport Borough Council,,SERVICE UNITS ADMIN COSTS,H4-6,,,,PUBLIC TRANSPORT,,,,,24/06/2011,917,66,REVENUE,Rsp Travel Warrants
Gosport Borough Council,,SERVICE UNITS ADMIN COSTS,H4-6,,,,PUBLIC TRANSPORT,,,,,24/06/2011,917,66,REVENUE,Rsp Travel Warrants
Gosport Borough Council,,SERVICE UNITS ADMIN COSTS,H4-6,,,,PUBLIC TRANSPORT,,,,,24/06/2011,917,12.8,REVENUE,Rsp Travel Warrants
Gosport Borough Council,,SERVICE UNITS ADMIN COSTS,H4-6,,,,EXPENSES,,,,,24/06/2011,917,45,REVENUE,Rsp Travel Warrants
Gosport Borough Council,,SERVICE UNITS ADMIN COSTS,H4-6,,,,PUBLIC TRANSPORT,,,,,24/06/2011,917,132,REVENUE,Rsp Travel Warrants
Gosport Borough Council,,SERVICE UNITS ADMIN COSTS,H4-6,,,,PUBLIC TRANSPORT,,,,,24/06/2011,917,66,REVENUE,Rsp Travel Warrants
Gosport Borough Council,,CAPITAL,H4-9,,,,CAPITAL - PREMISES COSTS,,,,,24/06/2011,914,"1,044,988.04",CAPITAL,Trant Construction
Gosport Borough Council,,HOUSING SERVICES,H4-3,,,,Home Lost Scheme,,,,,24/06/2011,16047,"4,700.00",REVENUE,REDACTED
Gosport Borough Council,,HOUSING SERVICES,H4-3,,,,PUBLIC TRANSPORT,,,,,24/06/2011,917,198,REVENUE,Rsp Travel Warrants
Gosport Borough Council,,HOUSING SERVICES,H4-3,,,,GRANTS AND SUBSCRIPTIONS,,,,,28/06/2011,15384,556.25,REVENUE,REDACTED
Gosport Borough Council,,HOUSING SERVICES,H4-3,,,,GRANTS AND SUBSCRIPTIONS,,,,,28/06/2011,15470,499.98,REVENUE,REDACTED
Gosport Borough Council,,HOUSING SERVICES,H4-3,,,,GRANTS AND SUBSCRIPTIONS,,,,,28/06/2011,15471,556,REVENUE,REDACTED
Gosport Borough Council,,HOUSING SERVICES,H4-3,,,,GRANTS AND SUBSCRIPTIONS,,,,,28/06/2011,15468,667.5,REVENUE,REDACTED
Gosport Borough Council,,HOUSING SERVICES,H4-3,,,,GRANTS AND SUBSCRIPTIONS,,,,,28/06/2011,15469,890,REVENUE,REDACTED
Gosport Borough Council,,HOUSING SERVICES,H4-3,,,,GRANTS AND SUBSCRIPTIONS,,,,,28/06/2011,15399,578.5,REVENUE,REDACTED
Gosport Borough Council,,HOUSING SERVICES,H4-3,,,,GRANTS AND SUBSCRIPTIONS,,,,,28/06/2011,15422,556.25,REVENUE,REDACTED
Gosport Borough Council,,HOUSING SERVICES,H4-3,,,,GRANTS AND SUBSCRIPTIONS,,,,,28/06/2011,15465,593.75,REVENUE,REDACTED
Gosport Borough Council,,HOUSING SERVICES,H4-3,,,,GRANTS AND SUBSCRIPTIONS,,,,,28/06/2011,15466,445,REVENUE,REDACTED
Gosport Borough Council,,HOUSING SERVICES,H4-3,,,,GRANTS AND SUBSCRIPTIONS,,,,,28/06/2011,15467,593.75,REVENUE,REDACTED
Gosport Borough Council,,HOUSING SERVICES,H4-3,,,,GRANTS AND SUBSCRIPTIONS,,,,,28/06/2011,15472,619,REVENUE,REDACTED
Gosport Borough Council,,HOUSING SERVICES,H4-3,,,,GRANTS AND SUBSCRIPTIONS,,,,,28/06/2011,15460,920.41,REVENUE,REDACTED
Gosport Borough Council,,HOUSING SERVICES,H4-3,,,,GRANTS AND SUBSCRIPTIONS,,,,,28/06/2011,15447,593.75,REVENUE,REDACTED
Gosport Borough Council,,HOUSING SERVICES,H4-3,,,,GRANTS AND SUBSCRIPTIONS,,,,,28/06/2011,15445,650,REVENUE,REDACTED
Gosport Borough Council,,HOUSING SERVICES,H4-3,,,,GRANTS AND SUBSCRIPTIONS,,,,,28/06/2011,15448,499.98,REVENUE,REDACTED
Gosport Borough Council,,HOUSING SERVICES,H4-3,,,,GRANTS AND SUBSCRIPTIONS,,,,,28/06/2011,15475,593.75,REVENUE,REDACTED
Gosport Borough Council,,HOUSING SERVICES,H4-3,,,,GRANTS AND SUBSCRIPTIONS,,,,,28/06/2011,15476,468.42,REVENUE,REDACTED
Gosport Borough Council,,HOUSING SERVICES,H4-3,,,,GRANTS AND SUBSCRIPTIONS,,,,,28/06/2011,15477,445,REVENUE,REDACTED
Gosport Borough Council,,HOUSING SERVICES,H4-3,,,,GRANTS AND SUBSCRIPTIONS,,,,,28/06/2011,15478,655.78,REVENUE,REDACTED
Gosport Borough Council,,HOUSING SERVICES,H4-3,,,,GRANTS AND SUBSCRIPTIONS,,,,,28/06/2011,15479,665,REVENUE,REDACTED
Gosport Borough Council,,HOUSING SERVICES,H4-3,,,,GRANTS AND SUBSCRIPTIONS,,,,,28/06/2011,15480,655.78,REVENUE,REDACTED
Gosport Borough Council,,HOUSING SERVICES,H4-3,,,,GRANTS AND SUBSCRIPTIONS,,,,,28/06/2011,15481,667.51,REVENUE,REDACTED
Gosport Borough Council,,HOUSING SERVICES,H4-3,,,,GRANTS AND SUBSCRIPTIONS,,,,,28/06/2011,15482,637.22,REVENUE,REDACTED
Gosport Borough Council,,HOUSING SERVICES,H4-3,,,,GRANTS AND SUBSCRIPTIONS,,,,,28/06/2011,15423,645.01,REVENUE,REDACTED
Gosport Borough Council,,HOUSING SERVICES,H4-3,,,,GRANTS AND SUBSCRIPTIONS,,,,,28/06/2011,15483,556.25,REVENUE,REDACTED
Gosport Borough Council,,HOUSING SERVICES,H4-3,,,,GRANTS AND SUBSCRIPTIONS,,,,,28/06/2011,15484,525,REVENUE,REDACTED
Gosport Borough Council,,HOUSING SERVICES,H4-3,,,,GRANTS AND SUBSCRIPTIONS,,,,,28/06/2011,15485,445,REVENUE,REDACTED
Gosport Borough Council,,HOUSING SERVICES,H4-3,,,,GRANTS AND SUBSCRIPTIONS,,,,,28/06/2011,15486,58.4,REVENUE,REDACTED
Gosport Borough Council,,HOUSING SERVICES,H4-3,,,,GRANTS AND SUBSCRIPTIONS,,,,,28/06/2011,15488,667.51,REVENUE,REDACTED
Gosport Borough Council,,HOUSING SERVICES,H4-3,,,,GRANTS AND SUBSCRIPTIONS,,,,,28/06/2011,15487,667.51,REVENUE,REDACTED
Gosport Borough Council,,HOUSING SERVICES,H4-3,,,,GRANTS AND SUBSCRIPTIONS,,,,,28/06/2011,15489,556.25,REVENUE,REDACTED
Gosport Borough Council,,HOUSING SERVICES,H4-3,,,,GRANTS AND SUBSCRIPTIONS,,,,,28/06/2011,15442,593.75,REVENUE,REDACTED
Gosport Borough Council,,HOUSING SERVICES,H4-3,,,,GRANTS AND SUBSCRIPTIONS,,,,,28/06/2011,15490,445,REVENUE,REDACTED
Gosport Borough Council,,HOUSING SERVICES,H4-3,,,,GRANTS AND SUBSCRIPTIONS,,,,,28/06/2011,15491,609.65,REVENUE,REDACTED
Gosport Borough Council,,HOUSING SERVICES,H4-3,,,,GRANTS AND SUBSCRIPTIONS,,,,,28/06/2011,15494,445,REVENUE,REDACTED
Gosport Borough Council,,HOUSING SERVICES,H4-3,,,,GRANTS AND SUBSCRIPTIONS,,,,,28/06/2011,15493,445,REVENUE,REDACTED
Gosport Borough Council,,HOUSING SERVICES,H4-3,,,,GRANTS AND SUBSCRIPTIONS,,,,,28/06/2011,15492,445,REVENUE,REDACTED
Gosport Borough Council,,HOUSING SERVICES,H4-3,,,,GRANTS AND SUBSCRIPTIONS,,,,,28/06/2011,15495,667.5,REVENUE,REDACTED
Gosport Borough Council,,HOUSING SERVICES,H4-3,,,,GRANTS AND SUBSCRIPTIONS,,,,,28/06/2011,15496,667.51,REVENUE,REDACTED
Gosport Borough Council,,HOUSING SERVICES,H4-3,,,,GRANTS AND SUBSCRIPTIONS,,,,,28/06/2011,15497,667.51,REVENUE,REDACTED
Gosport Borough Council,,HOUSING SERVICES,H4-3,,,,GRANTS AND SUBSCRIPTIONS,,,,,28/06/2011,15498,540.97,REVENUE,REDACTED
Gosport Borough Council,,HOUSING SERVICES,H4-3,,,,GRANTS AND SUBSCRIPTIONS,,,,,28/06/2011,15499,445,REVENUE,REDACTED
Gosport Borough Council,,HOUSING SERVICES,H4-3,,,,GRANTS AND SUBSCRIPTIONS,,,,,28/06/2011,15501,587.77,REVENUE,REDACTED
Gosport Borough Council,,HOUSING SERVICES,H4-3,,,,GRANTS AND SUBSCRIPTIONS,,,,,28/06/2011,15500,499.98,REVENUE,REDACTED
Gosport Borough Council,,HOUSING SERVICES,H4-3,,,,GRANTS AND SUBSCRIPTIONS,,,,,28/06/2011,15505,532.5,REVENUE,REDACTED
Gosport Borough Council,,HOUSING SERVICES,H4-3,,,,GRANTS AND SUBSCRIPTIONS,,,,,28/06/2011,15502,557.4,REVENUE,REDACTED
Gosport Borough Council,,HOUSING SERVICES,H4-3,,,,GRANTS AND SUBSCRIPTIONS,,,,,28/06/2011,15504,499.98,REVENUE,REDACTED
Gosport Borough Council,,HOUSING SERVICES,H4-3,,,,GRANTS AND SUBSCRIPTIONS,,,,,28/06/2011,15503,562.5,REVENUE,REDACTED
Gosport Borough Council,,HOUSING SERVICES,H4-3,,,,GRANTS AND SUBSCRIPTIONS,,,,,28/06/2011,15506,593.75,REVENUE,REDACTED
Gosport Borough Council,,HOUSING SERVICES,H4-3,,,,GRANTS AND SUBSCRIPTIONS,,,,,28/06/2011,15435,556.25,REVENUE,REDACTED
Gosport Borough Council,,HOUSING SERVICES,H4-3,,,,GRANTS AND SUBSCRIPTIONS,,,,,28/06/2011,15507,554.74,REVENUE,REDACTED
Gosport Borough Council,,HOUSING SERVICES,H4-3,,,,GRANTS AND SUBSCRIPTIONS,,,,,28/06/2011,15508,556.25,REVENUE,REDACTED
Gosport Borough Council,,HOUSING SERVICES,H4-3,,,,GRANTS AND SUBSCRIPTIONS,,,,,28/06/2011,15454,593.75,REVENUE,REDACTED
Gosport Borough Council,,HOUSING SERVICES,H4-3,,,,GRANTS AND SUBSCRIPTIONS,,,,,28/06/2011,15427,850,REVENUE,REDACTED
Gosport Borough Council,,HOUSING SERVICES,H4-3,,,,GRANTS AND SUBSCRIPTIONS,,,,,28/06/2011,15426,850,REVENUE,REDACTED
Gosport Borough Council,,HOUSING SERVICES,H4-3,,,,GRANTS AND SUBSCRIPTIONS,,,,,28/06/2011,15455,667.51,REVENUE,REDACTED
Gosport Borough Council,,HOUSING SERVICES,H4-3,,,,GRANTS AND SUBSCRIPTIONS,,,,,28/06/2011,15511,556.25,REVENUE,REDACTED
Gosport Borough Council,,HOUSING SERVICES,H4-3,,,,GRANTS AND SUBSCRIPTIONS,,,,,28/06/2011,15463,920.41,REVENUE,REDACTED
Gosport Borough Council,,HOUSING SERVICES,H4-3,,,,GRANTS AND SUBSCRIPTIONS,,,,,28/06/2011,15512,675,REVENUE,REDACTED
Gosport Borough Council,,HOUSING SERVICES,H4-3,,,,GRANTS AND SUBSCRIPTIONS,,,,,28/06/2011,15513,667.51,REVENUE,REDACTED
Gosport Borough Council,,HOUSING SERVICES,H4-3,,,,GRANTS AND SUBSCRIPTIONS,,,,,28/06/2011,15515,625,REVENUE,REDACTED
Gosport Borough Council,,HOUSING SERVICES,H4-3,,,,GRANTS AND SUBSCRIPTIONS,,,,,28/06/2011,15444,582.5,REVENUE,REDACTED
Gosport Borough Council,,HOUSING SERVICES,H4-3,,,,GRANTS AND SUBSCRIPTIONS,,,,,28/06/2011,15516,590,REVENUE,REDACTED
Gosport Borough Council,,HOUSING SERVICES,H4-3,,,,GRANTS AND SUBSCRIPTIONS,,,,,28/06/2011,15517,499.98,REVENUE,REDACTED
Gosport Borough Council,,HOUSING SERVICES,H4-3,,,,GRANTS AND SUBSCRIPTIONS,,,,,28/06/2011,15518,556.25,REVENUE,REDACTED
Gosport Borough Council,,HOUSING SERVICES,H4-3,,,,GRANTS AND SUBSCRIPTIONS,,,,,28/06/2011,15519,560,REVENUE,REDACTED
Gosport Borough Council,,HOUSING SERVICES,H4-3,,,,GRANTS AND SUBSCRIPTIONS,,,,,28/06/2011,15520,534,REVENUE,REDACTED
Gosport Borough Council,,HOUSING SERVICES,H4-3,,,,GRANTS AND SUBSCRIPTIONS,,,,,28/06/2011,15449,667.51,REVENUE,REDACTED
Gosport Borough Council,,HOUSING SERVICES,H4-3,,,,GRANTS AND SUBSCRIPTIONS,,,,,28/06/2011,15523,621.81,REVENUE,REDACTED
Gosport Borough Council,,HOUSING SERVICES,H4-3,,,,GRANTS AND SUBSCRIPTIONS,,,,,28/06/2011,15525,511.75,REVENUE,REDACTED
Gosport Borough Council,,HOUSING SERVICES,H4-3,,,,GRANTS AND SUBSCRIPTIONS,,,,,28/06/2011,15524,565,REVENUE,REDACTED
Gosport Borough Council,,HOUSING SERVICES,H4-3,,,,GRANTS AND SUBSCRIPTIONS,,,,,28/06/2011,15526,556.25,REVENUE,REDACTED
Gosport Borough Council,,HOUSING SERVICES,H4-3,,,,GRANTS AND SUBSCRIPTIONS,,,,,28/06/2011,15450,499.98,REVENUE,REDACTED
Gosport Borough Council,,HOUSING SERVICES,H4-3,,,,GRANTS AND SUBSCRIPTIONS,,,,,28/06/2011,15527,605,REVENUE,REDACTED
Gosport Borough Council,,HOUSING SERVICES,H4-3,,,,GRANTS AND SUBSCRIPTIONS,,,,,28/06/2011,15528,556.25,REVENUE,REDACTED
Gosport Borough Council,,HOUSING SERVICES,H4-3,,,,GRANTS AND SUBSCRIPTIONS,,,,,28/06/2011,15451,"1,000.00",REVENUE,REDACTED
Gosport Borough Council,,HOUSING SERVICES,H4-3,,,,GRANTS AND SUBSCRIPTIONS,,,,,28/06/2011,15529,667.51,REVENUE,REDACTED
Gosport Borough Council,,HOUSING SERVICES,H4-3,,,,GRANTS AND SUBSCRIPTIONS,,,,,28/06/2011,15456,593.75,REVENUE,REDACTED
Gosport Borough Council,,HOUSING SERVICES,H4-3,,,,GRANTS AND SUBSCRIPTIONS,,,,,28/06/2011,15458,593.75,REVENUE,REDACTED
Gosport Borough Council,,HOUSING SERVICES,H4-3,,,,GRANTS AND SUBSCRIPTIONS,,,,,28/06/2011,15531,558.18,REVENUE,REDACTED
Gosport Borough Council,,HOUSING SERVICES,H4-3,,,,GRANTS AND SUBSCRIPTIONS,,,,,28/06/2011,15532,593.75,REVENUE,REDACTED
Gosport Borough Council,,HOUSING SERVICES,H4-3,,,,GRANTS AND SUBSCRIPTIONS,,,,,28/06/2011,15436,593.75,REVENUE,REDACTED
Gosport Borough Council,,HOUSING SERVICES,H4-3,,,,GRANTS AND SUBSCRIPTIONS,,,,,28/06/2011,15533,667.51,REVENUE,REDACTED
Gosport Borough Council,,HOUSING SERVICES,H4-3,,,,GRANTS AND SUBSCRIPTIONS,,,,,28/06/2011,15536,468.42,REVENUE,REDACTED
Gosport Borough Council,,HOUSING SERVICES,H4-3,,,,GRANTS AND SUBSCRIPTIONS,,,,,28/06/2011,15537,645.25,REVENUE,REDACTED
Gosport Borough Council,,HOUSING SERVICES,H4-3,,,,GRANTS AND SUBSCRIPTIONS,,,,,28/06/2011,15538,621.31,REVENUE,REDACTED
Gosport Borough Council,,HOUSING SERVICES,H4-3,,,,GRANTS AND SUBSCRIPTIONS,,,,,28/06/2011,15539,593.75,REVENUE,REDACTED
Gosport Borough Council,,HOUSING SERVICES,H4-3,,,,GRANTS AND SUBSCRIPTIONS,,,,,28/06/2011,15540,667.51,REVENUE,REDACTED
Gosport Borough Council,,HOUSING SERVICES,H4-3,,,,GRANTS AND SUBSCRIPTIONS,,,,,28/06/2011,15443,592.14,REVENUE,REDACTED
Gosport Borough Council,,HOUSING SERVICES,H4-3,,,,GRANTS AND SUBSCRIPTIONS,,,,,28/06/2011,15541,626.36,REVENUE,REDACTED
Gosport Borough Council,,HOUSING SERVICES,H4-3,,,,GRANTS AND SUBSCRIPTIONS,,,,,28/06/2011,15542,630,REVENUE,REDACTED
Gosport Borough Council,,HOUSING SERVICES,H4-3,,,,GRANTS AND SUBSCRIPTIONS,,,,,28/06/2011,15544,593.75,REVENUE,REDACTED
Gosport Borough Council,,HOUSING SERVICES,H4-3,,,,GRANTS AND SUBSCRIPTIONS,,,,,28/06/2011,15543,580,REVENUE,REDACTED
Gosport Borough Council,,HOUSING SERVICES,H4-3,,,,GRANTS AND SUBSCRIPTIONS,,,,,28/06/2011,15547,499.98,REVENUE,REDACTED
Gosport Borough Council,,HOUSING SERVICES,H4-3,,,,GRANTS AND SUBSCRIPTIONS,,,,,28/06/2011,15546,800,REVENUE,REDACTED
Gosport Borough Council,,HOUSING SERVICES,H4-3,,,,GRANTS AND SUBSCRIPTIONS,,,,,28/06/2011,15545,495,REVENUE,REDACTED
Gosport Borough Council,,HOUSING SERVICES,H4-3,,,,GRANTS AND SUBSCRIPTIONS,,,,,28/06/2011,15548,667.51,REVENUE,REDACTED
Gosport Borough Council,,HOUSING SERVICES,H4-3,,,,GRANTS AND SUBSCRIPTIONS,,,,,28/06/2011,15549,499.98,REVENUE,REDACTED
Gosport Borough Council,,HOUSING SERVICES,H4-3,,,,GRANTS AND SUBSCRIPTIONS,,,,,28/06/2011,15550,511.75,REVENUE,REDACTED
Gosport Borough Council,,HOUSING SERVICES,H4-3,,,,GRANTS AND SUBSCRIPTIONS,,,,,28/06/2011,15434,655.01,REVENUE,REDACTED
Gosport Borough Council,,HOUSING SERVICES,H4-3,,,,GRANTS AND SUBSCRIPTIONS,,,,,28/06/2011,15453,593.75,REVENUE,REDACTED
Gosport Borough Council,,HOUSING SERVICES,H4-3,,,,GRANTS AND SUBSCRIPTIONS,,,,,28/06/2011,15552,649.09,REVENUE,REDACTED
Gosport Borough Council,,HOUSING SERVICES,H4-3,,,,GRANTS AND SUBSCRIPTIONS,,,,,28/06/2011,15551,578.5,REVENUE,REDACTED
Gosport Borough Council,,HOUSING SERVICES,H4-3,,,,GRANTS AND SUBSCRIPTIONS,,,,,28/06/2011,15553,600,REVENUE,REDACTED
Gosport Borough Council,,HOUSING SERVICES,H4-3,,,,GRANTS AND SUBSCRIPTIONS,,,,,28/06/2011,15166,"-11,292.64",REVENUE,REDACTED
Gosport Borough Council,,HOUSING SERVICES,H4-3,,,,GRANTS AND SUBSCRIPTIONS,,,,,28/06/2011,15554,593.75,REVENUE,REDACTED
Gosport Borough Council,,HOUSING SERVICES,H4-3,,,,GRANTS AND SUBSCRIPTIONS,,,,,28/06/2011,15167,"11,292.64",REVENUE,REDACTED
Gosport Borough Council,,HOUSING SERVICES,H4-3,,,,GRANTS AND SUBSCRIPTIONS,,,,,28/06/2011,15555,556.25,REVENUE,REDACTED
Gosport Borough Council,,HOUSING SERVICES,H4-3,,,,GRANTS AND SUBSCRIPTIONS,,,,,28/06/2011,15556,556.25,REVENUE,REDACTED
Gosport Borough Council,,HOUSING SERVICES,H4-3,,,,GRANTS AND SUBSCRIPTIONS,,,,,28/06/2011,15557,593.75,REVENUE,REDACTED
Gosport Borough Council,,HOUSING SERVICES,H4-3,,,,GRANTS AND SUBSCRIPTIONS,,,,,28/06/2011,15446,593.75,REVENUE,REDACTED
Gosport Borough Council,,HOUSING SERVICES,H4-3,,,,GRANTS AND SUBSCRIPTIONS,,,,,28/06/2011,15558,630,REVENUE,REDACTED
Gosport Borough Council,,HOUSING SERVICES,H4-3,,,,GRANTS AND SUBSCRIPTIONS,,,,,28/06/2011,15559,499.98,REVENUE,REDACTED
Gosport Borough Council,,HOUSING SERVICES,H4-3,,,,GRANTS AND SUBSCRIPTIONS,,,,,28/06/2011,15560,650,REVENUE,REDACTED
Gosport Borough Council,,HOUSING SERVICES,H4-3,,,,GRANTS AND SUBSCRIPTIONS,,,,,28/06/2011,15561,665.66,REVENUE,REDACTED
Gosport Borough Council,,HOUSING SERVICES,H4-3,,,,GRANTS AND SUBSCRIPTIONS,,,,,28/06/2011,15562,615,REVENUE,REDACTED
Gosport Borough Council,,HOUSING SERVICES,H4-3,,,,GRANTS AND SUBSCRIPTIONS,,,,,28/06/2011,15564,499.98,REVENUE,REDACTED
Gosport Borough Council,,HOUSING SERVICES,H4-3,,,,GRANTS AND SUBSCRIPTIONS,,,,,28/06/2011,15566,445,REVENUE,REDACTED
Gosport Borough Council,,HOUSING SERVICES,H4-3,,,,GRANTS AND SUBSCRIPTIONS,,,,,28/06/2011,15565,65.57,REVENUE,REDACTED
Gosport Borough Council,,HOUSING SERVICES,H4-3,,,,GRANTS AND SUBSCRIPTIONS,,,,,28/06/2011,15567,732.52,REVENUE,REDACTED
Gosport Borough Council,,HOUSING SERVICES,H4-3,,,,GRANTS AND SUBSCRIPTIONS,,,,,28/06/2011,15441,667.51,REVENUE,REDACTED
Gosport Borough Council,,HOUSING SERVICES,H4-3,,,,GRANTS AND SUBSCRIPTIONS,,,,,28/06/2011,15568,556.25,REVENUE,REDACTED
Gosport Borough Council,,HOUSING SERVICES,H4-3,,,,GRANTS AND SUBSCRIPTIONS,,,,,28/06/2011,15425,556.25,REVENUE,REDACTED
Gosport Borough Council,,HOUSING SERVICES,H4-3,,,,GRANTS AND SUBSCRIPTIONS,,,,,28/06/2011,15424,529.25,REVENUE,REDACTED
Gosport Borough Council,,HOUSING SERVICES,H4-3,,,,GRANTS AND SUBSCRIPTIONS,,,,,28/06/2011,15569,585.52,REVENUE,REDACTED
Gosport Borough Council,,HOUSING SERVICES,H4-3,,,,GRANTS AND SUBSCRIPTIONS,,,,,28/06/2011,15570,499.98,REVENUE,REDACTED
Gosport Borough Council,,HOUSING SERVICES,H4-3,,,,GRANTS AND SUBSCRIPTIONS,,,,,28/06/2011,15428,593.75,REVENUE,REDACTED
Gosport Borough Council,,HOUSING SERVICES,H4-3,,,,GRANTS AND SUBSCRIPTIONS,,,,,28/06/2011,15459,593.75,REVENUE,REDACTED
Gosport Borough Council,,HOUSING SERVICES,H4-3,,,,GRANTS AND SUBSCRIPTIONS,,,,,28/06/2011,15464,499.98,REVENUE,REDACTED
Gosport Borough Council,,HOUSING SERVICES,H4-3,,,,GRANTS AND SUBSCRIPTIONS,,,,,28/06/2011,15571,556.25,REVENUE,REDACTED
Gosport Borough Council,,HOUSING SERVICES,H4-3,,,,GRANTS AND SUBSCRIPTIONS,,,,,28/06/2011,15452,593.75,REVENUE,REDACTED
Gosport Borough Council,,HOUSING SERVICES,H4-3,,,,GRANTS AND SUBSCRIPTIONS,,,,,28/06/2011,15379,556.25,REVENUE,REDACTED
Gosport Borough Council,,HOUSING SERVICES,H4-3,,,,GRANTS AND SUBSCRIPTIONS,,,,,28/06/2011,15385,534,REVENUE,REDACTED
Gosport Borough Council,,HOUSING SERVICES,H4-3,,,,GRANTS AND SUBSCRIPTIONS,,,,,28/06/2011,15461,241.42,REVENUE,REDACTED
Gosport Borough Council,,HOUSING SERVICES,H4-3,,,,GRANTS AND SUBSCRIPTIONS,,,,,28/06/2011,15462,920.41,REVENUE,REDACTED
Gosport Borough Council,,HOUSING SERVICES,H4-3,,,,GRANTS AND SUBSCRIPTIONS,,,,,28/06/2011,15393,593.75,REVENUE,Brite-Move
Gosport Borough Council,,HOUSING SERVICES,H4-3,,,,GRANTS AND SUBSCRIPTIONS,,,,,28/06/2011,15387,593.75,REVENUE,Brite-Move
Gosport Borough Council,,HOUSING SERVICES,H4-3,,,,GRANTS AND SUBSCRIPTIONS,,,,,28/06/2011,15396,598.74,REVENUE,Brite-Move
Gosport Borough Council,,HOUSING SERVICES,H4-3,,,,GRANTS AND SUBSCRIPTIONS,,,,,28/06/2011,15391,695,REVENUE,Brite-Move
Gosport Borough Council,,HOUSING SERVICES,H4-3,,,,GRANTS AND SUBSCRIPTIONS,,,,,28/06/2011,15389,780,REVENUE,Brite-Move
Gosport Borough Council,,HOUSING SERVICES,H4-3,,,,GRANTS AND SUBSCRIPTIONS,,,,,28/06/2011,15419,574.99,REVENUE,David Seymour & Associates
Gosport Borough Council,,HOUSING SERVICES,H4-3,,,,GRANTS AND SUBSCRIPTIONS,,,,,28/06/2011,15421,574.99,REVENUE,David Seymour & Associates
Gosport Borough Council,,HOUSING SERVICES,H4-3,,,,GRANTS AND SUBSCRIPTIONS,,,,,28/06/2011,15418,575,REVENUE,David Seymour & Associates
Gosport Borough Council,,HOUSING SERVICES,H4-3,,,,GRANTS AND SUBSCRIPTIONS,,,,,28/06/2011,15404,593.75,REVENUE,David Seymour & Associates
Gosport Borough Council,,HOUSING SERVICES,H4-3,,,,GRANTS AND SUBSCRIPTIONS,,,,,28/06/2011,15416,593.75,REVENUE,David Seymour & Associates
Gosport Borough Council,,HOUSING SERVICES,H4-3,,,,GRANTS AND SUBSCRIPTIONS,,,,,28/06/2011,15408,593.75,REVENUE,David Seymour & Associates
Gosport Borough Council,,HOUSING SERVICES,H4-3,,,,GRANTS AND SUBSCRIPTIONS,,,,,28/06/2011,15409,593.75,REVENUE,David Seymour & Associates
Gosport Borough Council,,HOUSING SERVICES,H4-3,,,,GRANTS AND SUBSCRIPTIONS,,,,,28/06/2011,15406,593.75,REVENUE,David Seymour & Associates
Gosport Borough Council,,HOUSING SERVICES,H4-3,,,,GRANTS AND SUBSCRIPTIONS,,,,,28/06/2011,15405,593.75,REVENUE,David Seymour & Associates
Gosport Borough Council,,HOUSING SERVICES,H4-3,,,,GRANTS AND SUBSCRIPTIONS,,,,,28/06/2011,15410,593.75,REVENUE,David Seymour & Associates
Gosport Borough Council,,HOUSING SERVICES,H4-3,,,,GRANTS AND SUBSCRIPTIONS,,,,,28/06/2011,15403,667.51,REVENUE,David Seymour & Associates
Gosport Borough Council,,HOUSING SERVICES,H4-3,,,,GRANTS AND SUBSCRIPTIONS,,,,,28/06/2011,15420,675,REVENUE,David Seymour & Associates
Gosport Borough Council,,HOUSING SERVICES,H4-3,,,,GRANTS AND SUBSCRIPTIONS,,,,,28/06/2011,15430,593.75,REVENUE,Elite Property Management
Gosport Borough Council,,HOUSING SERVICES,H4-3,,,,GRANTS AND SUBSCRIPTIONS,,,,,28/06/2011,15429,593.75,REVENUE,Elite Property Management
Gosport Borough Council,,HOUSING SERVICES,H4-3,,,,GRANTS AND SUBSCRIPTIONS,,,,,28/06/2011,15431,667.51,REVENUE,Elite Property Management
Gosport Borough Council,,HOUSING SERVICES,H4-3,,,,GRANTS AND SUBSCRIPTIONS,,,,,28/06/2011,15432,890,REVENUE,Elite Property Management
Gosport Borough Council,,HOUSING SERVICES,H4-3,,,,GRANTS AND SUBSCRIPTIONS,,,,,28/06/2011,15438,593.75,REVENUE,Fairhalls
Gosport Borough Council,,HOUSING SERVICES,H4-3,,,,GRANTS AND SUBSCRIPTIONS,,,,,28/06/2011,15439,593.75,REVENUE,Fairhalls
Gosport Borough Council,,HOUSING SERVICES,H4-3,,,,GRANTS AND SUBSCRIPTIONS,,,,,28/06/2011,15440,645,REVENUE,Fine Cars (Lee On Solent) Ltd
Gosport Borough Council,,HOUSING SERVICES,H4-3,,,,GRANTS AND SUBSCRIPTIONS,,,,,28/06/2011,15473,665,REVENUE,Miller Building Management
Gosport Borough Council,,HOUSING SERVICES,H4-3,,,,GRANTS AND SUBSCRIPTIONS,,,,,28/06/2011,15474,667.51,REVENUE,Miller Building Management
Gosport Borough Council,,HOUSING SERVICES,H4-3,,,,GRANTS AND SUBSCRIPTIONS,,,,,28/06/2011,15380,556.25,REVENUE,Stoke Gardens Guest Houses
Gosport Borough Council,,HOUSING SERVICES,H4-3,,,,GRANTS AND SUBSCRIPTIONS,,,,,28/06/2011,15381,636.84,REVENUE,Stoke Gardens Guest Houses
Gosport Borough Council,,HOUSING SERVICES,H4-3,,,,GRANTS AND SUBSCRIPTIONS,,,,,28/06/2011,15382,667.51,REVENUE,Stoke Gardens Guest Houses
Gosport Borough Council,,HOUSING SERVICES,H4-3,,,,GRANTS AND SUBSCRIPTIONS,,,,,28/06/2011,15383,763.15,REVENUE,Stoke Gardens Guest Houses
Gosport Borough Council,,HOUSING SERVICES,H4-3,,,,GRANTS AND SUBSCRIPTIONS,,,,,28/06/2011,15457,593.75,REVENUE,Streets Ahead Lettings
Gosport Borough Council,,HOUSING SERVICES,H4-3,,,,GRANTS AND SUBSCRIPTIONS,,,,,28/06/2011,15386,520.65,REVENUE,Way Ahead Solutions Ltd
Gosport Borough Council,,CAPITAL,H4-9,,,,CAPITAL - PREMISES COSTS,,,,,28/06/2011,16093,"10,311.11",CAPITAL,Lucas Windebank & Mcnally
Gosport Borough Council,,HOUSING SERVICES,H4-3,,,,SERVICES,,,,,28/06/2011,16091,540,REVENUE,Bourke'S Removals
Gosport Borough Council,,"CULTURAL, ENV AND PLANNING",H4-1,,,,GROUNDS MAINTENANCE COSTS,,,,,29/06/2011,16085,445,REVENUE,Cliff Phillips Landscapes
Gosport Borough Council,,"CULTURAL, ENV AND PLANNING",H4-1,,,,GROUNDS MAINTENANCE COSTS,,,,,29/06/2011,16082,660,REVENUE,Cliff Phillips Landscapes
Gosport Borough Council,,"CULTURAL, ENV AND PLANNING",H4-1,,,,REPAIRS AND MAINT OF BUILDINGS,,,,,29/06/2011,15524,39.1,REVENUE,South Coast Memorials
Gosport Borough Council,,"CULTURAL, ENV AND PLANNING",H4-1,,,,"EQUIP, FURNITURE AND MATERIALS",,,,,29/06/2011,15512,32,REVENUE,Maudesport
Gosport Borough Council,,"CULTURAL, ENV AND PLANNING",H4-1,,,,REPAIRS AND MAINT OF BUILDINGS,,,,,29/06/2011,15468,71,REVENUE,Gs Building Services Ltd
Gosport Borough Council,,"HIGHWAYS, ROADS AND TRANSPORT",H4-2,,,,GROUNDS MAINTENANCE COSTS,,,,,29/06/2011,16085,300,REVENUE,Cliff Phillips Landscapes
Gosport Borough Council,,"HIGHWAYS, ROADS AND TRANSPORT",H4-2,,,,GROUNDS MAINTENANCE COSTS,,,,,29/06/2011,16082,"1,910.00",REVENUE,Cliff Phillips Landscapes
Gosport Borough Council,,"CULTURAL, ENV AND PLANNING",H4-1,,,,GRANTS AND SUBSCRIPTIONS,,,,,29/06/2011,16086,"3,488.13",REVENUE,Havant Borough Council
Gosport Borough Council,,"HIGHWAYS, ROADS AND TRANSPORT",H4-2,,,,REPAIRS AND MAINT OF BUILDINGS,,,,,29/06/2011,15525,80.98,REVENUE,Lucas Windebank & Mcnally
Gosport Borough Council,,"CULTURAL, ENV AND PLANNING",H4-1,,,,GROUNDS MAINTENANCE COSTS,,,,,29/06/2011,16085,120,REVENUE,Cliff Phillips Landscapes
Gosport Borough Council,,"CULTURAL, ENV AND PLANNING",H4-1,,,,REPAIRS AND MAINT OF BUILDINGS,,,,,29/06/2011,15466,"1,461.38",REVENUE,Gs Building Services Ltd
Gosport Borough Council,,"CULTURAL, ENV AND PLANNING",H4-1,,,,MISCELLANEOUS EXPENSES,,,,,29/06/2011,16111,"2,848.86",REVENUE,Gosport Bmx Club
Gosport Borough Council,,"CULTURAL, ENV AND PLANNING",H4-1,,,,MISCELLANEOUS EXPENSES,,,,,29/06/2011,16109,861.3,REVENUE,Hampshire County Council
Gosport Borough Council,,"CULTURAL, ENV AND PLANNING",H4-1,,,,MISCELLANEOUS EXPENSES,,,,,29/06/2011,16112,754.6,REVENUE,Rowner Carnival
Gosport Borough Council,,SERVICE UNITS ADMIN COSTS,H4-6,,,,DIRECT EMPLOYEE EXPENSES,,,,,29/06/2011,16079,661.5,REVENUE,Fusion People Limited
Gosport Borough Council,,SERVICE UNITS ADMIN COSTS,H4-6,,,,COMMUNICATIONS AND COMPUTING,,,,,29/06/2011,15511,"5,096.00",REVENUE,Cryptzone Uk Ltd
Gosport Borough Council,,SERVICE UNITS ADMIN COSTS,H4-6,,,,CLEANING AND DOMESTIC SUPPLIES,,,,,29/06/2011,16114,"1,175.00",REVENUE,The Dall Cleaning Partnership
Gosport Borough Council,,SERVICE UNITS ADMIN COSTS,H4-6,,,,DIRECT EMPLOYEE EXPENSES,,,,,29/06/2011,16108,"3,349.93",REVENUE,Aea Bookings
Gosport Borough Council,,SERVICE UNITS ADMIN COSTS,H4-6,,,,SERVICES,,,,,29/06/2011,16122,750,REVENUE,REDACTED
Gosport Borough Council,,SERVICE UNITS ADMIN COSTS,H4-6,,,,SERVICES,,,,,29/06/2011,15818,"1,200.00",REVENUE,Northgate Information Solutions
Gosport Borough Council,,CAPITAL,H4-9,,,,CAPITAL - PREMISES COSTS,,,,,29/06/2011,16094,"4,502.00",CAPITAL,Caroway Contractors Limited
Gosport Borough Council,,CAPITAL,H4-9,,,,CAPITAL - PREMISES COSTS,,,,,29/06/2011,16092,"24,160.00",CAPITAL,Caroway Contractors Limited
Gosport Borough Council,,CAPITAL,H4-9,,,,COMMUNICATIONS AND COMPUTING,,,,,29/06/2011,16110,"8,020.91",CAPITAL,Idox Software Ltd
Gosport Borough Council,,HOUSING SERVICES,H4-3,,,,GRANTS AND SUBSCRIPTIONS,,,,,29/06/2011,16117,132.27,REVENUE,REDACTED
Gosport Borough Council,,HOUSING SERVICES,H4-3,,,,Home Lost Scheme,,,,,29/06/2011,16117,"4,700.00",REVENUE,REDACTED
Gosport Borough Council,,HOUSING SERVICES,H4-3,,,,INDIRECT EMPLOYEE EXPENSES,,,,,29/06/2011,16077,454.25,REVENUE,Purvers International
Gosport Borough Council,,HOUSING SERVICES,H4-3,,,,INDIRECT EMPLOYEE EXPENSES,,,,,29/06/2011,16078,872.85,REVENUE,Purvers International
Gosport Borough Council,,HOUSING SERVICES,H4-3,,,,GROUNDS MAINTENANCE COSTS,,,,,29/06/2011,16085,620,REVENUE,Cliff Phillips Landscapes
Gosport Borough Council,,HOUSING SERVICES,H4-3,,,,GROUNDS MAINTENANCE COSTS,,,,,29/06/2011,16082,"1,550.00",REVENUE,Cliff Phillips Landscapes
Gosport Borough Council,,HOUSING SERVICES,H4-3,,,,WATER SERVICES,,,,,29/06/2011,16080,936.8,REVENUE,Southern Water Authority
Gosport Borough Council,,"CULTURAL, ENV AND PLANNING",H4-1,,,,WATER SERVICES,,,,,30/06/2011,16181,"3,802.74",REVENUE,Portsmouth Water Ltd
